{"text_format":"1","workbook":"xlsx","n_sheets":4,"sheets":["INICIO","REVISION DE PROTOCOLO","RESULTADOS","ERROR DE HOJA"],"not_rendered":{"charts":1,"images":6,"macros":1,"external_links":0,"defined_names":0,"comments":0,"pivot_tables":0},"unopened":[],"bounds":{"document_bytes":16777216,"sheet_cells":100000,"rows_first":2000,"rows_last":500,"rows_between":2000,"halvings":0,"cell_chars":16384,"cell_head_chars":4096},"cells_cut":0,"cells_raw":0,"read":"whole","date_system":"1900"}

{"sheet":"INICIO","index":0,"n_rows":21,"n_cols":2,"rows_kept":21,"cut":false,"hidden":false,"merged":[[20,1,21,11],[18,1,19,11],[1,1,8,11],[9,1,9,11],[10,1,10,11],[11,1,15,11],[16,1,17,11]]}
[]
[null," "]
[]
[]
[]
[]
[]
[]
[]
[]
[null,"Instrucciones"]
[null,"A continuación, encontrará una tabla compuesta con una serie de Ítems, los cuales le permitirán establecer y obtener una proyección actualizada, con respecto a los “Protocolos correlacionados al COVID-19, que se Aplican en Actividades de Hospedaje”.   Por tanto, si la acción que se indica en el ítem la empresa la está desarrollando, debe “Marcar el Botón de la Casilla del Si Cumple”; si la acción indicada no la está realizando, debe “Marcar el Botón de la Casilla del No Cumple”.      Y si se considera que esa acción no es pertinente aplicarla por las características propias que tiene la empresa, debe “Marcar el Botón de la Casilla del “No Aplica”. "]
[]
[]
[]
[]
[null,"Cuando NO SE CUMPLA la Acción evaluada, podrá ir al \"Botón de Caja de Herramientas\", donde encontrará recomendaciones para subsanar la acción negativa que registró. "]
[]
[null,"Los resultados obtenidos serán visualizados en la Tabla de Resultados.  "]
[]
[null,"Para ir al “Formulario” que debe utilizar para realizar la Evaluación, o para visualizar la \"Hoja de Resultados”, solo presione los \"Botones\" correspondientes."]

{"sheet":"REVISION DE PROTOCOLO","index":1,"n_rows":117,"n_cols":59,"rows_kept":117,"cut":false,"hidden":false,"merged":[[102,2,102,10],[103,2,103,10],[116,2,116,10],[115,2,115,10],[97,2,97,14],[98,2,98,14],[104,2,104,14],[105,2,105,10],[110,2,110,10],[111,2,111,14],[113,2,113,14],[112,2,112,10],[114,2,114,10],[106,2,106,10],[107,2,107,10],[108,2,108,10],[109,2,109,10],[99,2,99,10],[100,2,100,10],[101,2,101,10],[94,2,94,10],[96,2,96,10],[89,2,89,10],[90,2,90,10],[91,2,91,10],[85,2,85,14],[87,2,87,14],[86,2,86,10],[88,2,88,10],[95,2,95,10],[73,2,73,10],[74,2,74,10],[75,2,75,10],[36,2,36,10],[38,2,38,14],[76,2,76,10],[77,2,77,10],[69,2,69,10],[70,2,70,10],[71,2,71,14],[64,2,64,10],[65,2,65,10],[66,2,66,10],[67,2,67,10],[68,2,68,10],[31,2,31,10],[30,2,30,14],[20,2,20,10],[21,2,21,10],[22,2,22,10],[23,2,23,10],[25,2,25,10],[1,1,5,14],[6,1,7,14],[10,2,10,10],[19,2,19,10],[15,2,15,10],[14,2,14,10],[16,2,16,10],[17,2,17,10],[18,2,18,10],[13,2,13,10],[12,2,12,14],[11,2,11,14],[117,1,119,1],[50,2,50,10],[52,2,52,10],[46,2,46,10],[47,2,47,10],[48,2,48,10],[45,2,45,14],[49,2,49,14],[51,2,51,14],[59,2,59,10],[60,2,60,10],[61,2,61,10],[62,2,62,10],[63,2,63,10],[72,2,72,14],[83,2,83,10],[84,2,84,10],[93,2,93,14],[92,2,92,10],[78,2,78,10],[79,2,79,10],[80,2,80,10],[81,2,81,10],[82,2,82,14],[1,16,7,16],[53,2,53,10],[54,2,54,10],[55,2,55,10],[56,2,56,10],[57,2,57,14],[58,2,58,10],[117,2,119,14],[32,2,32,10],[44,2,44,10],[41,2,41,14],[42,2,42,14],[43,2,43,10],[24,2,24,14],[35,2,35,10],[40,2,40,10],[33,2,33,10],[34,2,34,10],[37,2,37,10],[39,2,39,10],[29,2,29,14],[26,2,26,10],[27,2,27,10],[28,2,28,10]]}
[]
[null,null,null,null,null,null,null,null,null,null,null,null,null,null,null,null,"Presione el Botón para ir a la Caja de Herraminetas"]
[]
[]
[]
[]
[null,"La herramienta consiste en una guía que le permitirá autoevaluar las acciones que ha implementado en su empresa; para lograr y mantener la continuidad del negocio ante la pandemia del Covid-19.",null,null,null,null,null,null,null,null,null,null,null,null,null,null,null,null,null,null,null,null,null,null,null,null,null,null,null,null,null,null,null,null,null,null,null,null,null,null,null,null,null,null,null,null,null,null,null,null,null,null,null,null," "]
[]
[]
[]
[null,"N° de Item","Criterio Valorativo para la Medición",null,null,null,null,null,null,null,null,"Si Cumple","No Cumple","No Aplica","Resultado"]
[null,"I","RESPONSABILIDADES"]
[null,"A","RESPONSABILIDADES DEL PERSONAL ADMINISTRATIVO",null,null,null,null,null,null,null,null,null,null,null,null,null,null,null,null,null,null,null,null,null,null,null,null,null,null,null,null,null,null,null,null,null,null,null,null,null,null,null,null,null,null,null,null,null,null,null,null,null,null,null," "]
[null,1,"Establece y documenta un control diario del estado de salud de las personas trabajadoras.","Establece y documenta un control diario del estado de salud de las personas trabajadoras.","Establece y documenta un control diario del estado de salud de las personas trabajadoras.","Establece y documenta un control diario del estado de salud de las personas trabajadoras.","Establece y documenta un control diario del estado de salud de las personas trabajadoras.","Establece y documenta un control diario del estado de salud de las personas trabajadoras.","Establece y documenta un control diario del estado de salud de las personas trabajadoras.","Establece y documenta un control diario del estado de salud de las personas trabajadoras.","Establece y documenta un control diario del estado de salud de las personas trabajadoras.",null,null,null,{"$f":"IF(OR(BB14=1),\"OK\",IF(BC14=2,\"Deficiente\",\"\"))","v":""},null,null,null,null,null,null,null,null,null,null,null,null,null,null,null,null,null,null,null,null,null,null,null,null,null,null,null,null,null,null,null,null,null,null,null,null,null,null,{"$f":"IF(OR(BC14=1),1,IF(BC14=2,0,\"N\"))","v":"N"},3,null,null,null," "]
[null,2,"Informa a la clientela los protocolos de distanciamiento social.","Informa a la clientela los protocolos de distanciamiento social.","Informa a la clientela los protocolos de distanciamiento social.","Informa a la clientela los protocolos de distanciamiento social.","Informa a la clientela los protocolos de distanciamiento social.","Informa a la clientela los protocolos de distanciamiento social.","Informa a la clientela los protocolos de distanciamiento social.","Informa a la clientela los protocolos de distanciamiento social.","Informa a la clientela los protocolos de distanciamiento social.",null,null,null,{"$f":"IF(OR(BB15=1),\"OK\",IF(BC15=2,\"Deficiente\",\"\"))","v":""},null,null,null,null,null,null,null,null,null,null,null,null,null,null,null,null,null,null,null,null,null,null,null,null,null,null,null,null,null,null,null,null,null,null,null,null,null,null,{"$f":"IF(OR(BC15=1),1,IF(BC15=2,0,\"N\"))","v":"N"},3]
[null,3,"Coloca en espacios visibles los protocolos de estornudo y tos, lavado de manos, otras formas de saludar, no tocarse la cara y poblaciones en riesgo en los idiomas más comunes de atención al turista, en todas las áreas del establecimiento.","Coloca en espacios visibles los protocolos de estornudo y tos, lavado de manos, otras formas de saludar, no tocarse la cara y poblaciones en riesgo en los idiomas más comunes de atención al turista, en todas las áreas del establecimiento.","Coloca en espacios visibles los protocolos de estornudo y tos, lavado de manos, otras formas de saludar, no tocarse la cara y poblaciones en riesgo en los idiomas más comunes de atención al turista, en todas las áreas del establecimiento.","Coloca en espacios visibles los protocolos de estornudo y tos, lavado de manos, otras formas de saludar, no tocarse la cara y poblaciones en riesgo en los idiomas más comunes de atención al turista, en todas las áreas del establecimiento.","Coloca en espacios visibles los protocolos de estornudo y tos, lavado de manos, otras formas de saludar, no tocarse la cara y poblaciones en riesgo en los idiomas más comunes de atención al turista, en todas las áreas del establecimiento.","Coloca en espacios visibles los protocolos de estornudo y tos, lavado de manos, otras formas de saludar, no tocarse la cara y poblaciones en riesgo en los idiomas más comunes de atención al turista, en todas las áreas del establecimiento.","Coloca en espacios visibles los protocolos de estornudo y tos, lavado de manos, otras formas de saludar, no tocarse la cara y poblaciones en riesgo en los idiomas más comunes de atención al turista, en todas las áreas del establecimiento.","Coloca en espacios visibles los protocolos de estornudo y tos, lavado de manos, otras formas de saludar, no tocarse la cara y poblaciones en riesgo en los idiomas más comunes de atención al turista, en todas las áreas del establecimiento.","Coloca en espacios visibles los protocolos de estornudo y tos, lavado de manos, otras formas de saludar, no tocarse la cara y poblaciones en riesgo en los idiomas más comunes de atención al turista, en todas las áreas del establecimiento.",null,null,null,"",null,null,null,null,null,null,null,null,null,null,null,null,null,null,null,null,null,null,null,null,null,null,null,null,null,null,null,null,null,null,null,null,null,null,null,null,null,null,"N",3," "]
[null,4,"Comunica al personal sobre la situación nacional por COVID-19 de fuentes oficiales como Ministerio de Salud y Caja Costarricense del Seguro Social.","Comunica al personal sobre la situación nacional por COVID-19 de fuentes oficiales como Ministerio de Salud y Caja Costarricense del Seguro Social.","Comunica al personal sobre la situación nacional por COVID-19 de fuentes oficiales como Ministerio de Salud y Caja Costarricense del Seguro Social.","Comunica al personal sobre la situación nacional por COVID-19 de fuentes oficiales como Ministerio de Salud y Caja Costarricense del Seguro Social.","Comunica al personal sobre la situación nacional por COVID-19 de fuentes oficiales como Ministerio de Salud y Caja Costarricense del Seguro Social.","Comunica al personal sobre la situación nacional por COVID-19 de fuentes oficiales como Ministerio de Salud y Caja Costarricense del Seguro Social.","Comunica al personal sobre la situación nacional por COVID-19 de fuentes oficiales como Ministerio de Salud y Caja Costarricense del Seguro Social.","Comunica al personal sobre la situación nacional por COVID-19 de fuentes oficiales como Ministerio de Salud y Caja Costarricense del Seguro Social.","Comunica al personal sobre la situación nacional por COVID-19 de fuentes oficiales como Ministerio de Salud y Caja Costarricense del Seguro Social.",null,null,null,"",null,null,null,null,null,null,null,null,null,null,null,null,null,null,null,null,null,null,null,null,null,null,null,null,null,null,null,null,null,null,null,null,null,null,null,null,null,null,"N",3]
[null,5,"Se cuenta con una  persona responsable de velar por el cumplimiento de las disposiciones estipuladas por el Ministerio de Salud.","Se cuenta con una  persona responsable de velar por el cumplimiento de las disposiciones estipuladas por el Ministerio de Salud.","Se cuenta con una  persona responsable de velar por el cumplimiento de las disposiciones estipuladas por el Ministerio de Salud.","Se cuenta con una  persona responsable de velar por el cumplimiento de las disposiciones estipuladas por el Ministerio de Salud.","Se cuenta con una  persona responsable de velar por el cumplimiento de las disposiciones estipuladas por el Ministerio de Salud.","Se cuenta con una  persona responsable de velar por el cumplimiento de las disposiciones estipuladas por el Ministerio de Salud.","Se cuenta con una  persona responsable de velar por el cumplimiento de las disposiciones estipuladas por el Ministerio de Salud.","Se cuenta con una  persona responsable de velar por el cumplimiento de las disposiciones estipuladas por el Ministerio de Salud.","Se cuenta con una  persona responsable de velar por el cumplimiento de las disposiciones estipuladas por el Ministerio de Salud.",null,null,null,"",null,null,null,null,null,null,null,null,null,null,null,null,null,null,null,null,null,null,null,null,null,null,null,null,null,null,null,null,null,null,null,null,null,null,null,null,null,null,"N",3]
[null,6,"Realiza inspección y  documenta el control y seguimiento de la aplicación del protocolo establecido en la empresa.","Realiza inspección y  documenta el control y seguimiento de la aplicación del protocolo establecido en la empresa.","Realiza inspección y  documenta el control y seguimiento de la aplicación del protocolo establecido en la empresa.","Realiza inspección y  documenta el control y seguimiento de la aplicación del protocolo establecido en la empresa.","Realiza inspección y  documenta el control y seguimiento de la aplicación del protocolo establecido en la empresa.","Realiza inspección y  documenta el control y seguimiento de la aplicación del protocolo establecido en la empresa.","Realiza inspección y  documenta el control y seguimiento de la aplicación del protocolo establecido en la empresa.","Realiza inspección y  documenta el control y seguimiento de la aplicación del protocolo establecido en la empresa.","Realiza inspección y  documenta el control y seguimiento de la aplicación del protocolo establecido en la empresa.",null,null,null,"",null,null,null,null,null,null,null,null,null,null,null,null,null,null,null,null,null,null,null,null,null,null,null,null,null,null,null,null,null,null,null,null,null,null,null,null,null,null,"N",3]
[null,7,"Limita el aforo en las diferentes áreas, informando los horarios, acceso, considerando las directrices del Ministerio de Salud.","Limita el aforo en las diferentes áreas, informando los horarios, acceso, considerando las directrices del Ministerio de Salud.","Limita el aforo en las diferentes áreas, informando los horarios, acceso, considerando las directrices del Ministerio de Salud.","Limita el aforo en las diferentes áreas, informando los horarios, acceso, considerando las directrices del Ministerio de Salud.","Limita el aforo en las diferentes áreas, informando los horarios, acceso, considerando las directrices del Ministerio de Salud.","Limita el aforo en las diferentes áreas, informando los horarios, acceso, considerando las directrices del Ministerio de Salud.","Limita el aforo en las diferentes áreas, informando los horarios, acceso, considerando las directrices del Ministerio de Salud.","Limita el aforo en las diferentes áreas, informando los horarios, acceso, considerando las directrices del Ministerio de Salud.","Limita el aforo en las diferentes áreas, informando los horarios, acceso, considerando las directrices del Ministerio de Salud.",null,null,null,"",null,null,null,null,null,null,null,null,null,null,null,null,null,null,null,null,null,null,null,null,null,null,null,null,null,null,null,null,null,null,null,null,null,null,null,null,null,null,"N",3]
[null,8,"En caso de reuniones presenciales estrictamente necesaria considera lo siguiente:\n*Distanciamiento social.\n*Tiempo de reunión para control de lavado de manos cada 60 minutos.\n*Limpieza y Desinfección del área de reunión antes y después.","En caso de reuniones presenciales estrictamente necesaria considera lo siguiente:\n*Distanciamiento social.\n*Tiempo de reunión para control de lavado de manos cada 60 minutos.\n*Limpieza y Desinfección del área de reunión antes y después.","En caso de reuniones presenciales estrictamente necesaria considera lo siguiente:\n*Distanciamiento social.\n*Tiempo de reunión para control de lavado de manos cada 60 minutos.\n*Limpieza y Desinfección del área de reunión antes y después.","En caso de reuniones presenciales estrictamente necesaria considera lo siguiente:\n*Distanciamiento social.\n*Tiempo de reunión para control de lavado de manos cada 60 minutos.\n*Limpieza y Desinfección del área de reunión antes y después.","En caso de reuniones presenciales estrictamente necesaria considera lo siguiente:\n*Distanciamiento social.\n*Tiempo de reunión para control de lavado de manos cada 60 minutos.\n*Limpieza y Desinfección del área de reunión antes y después.","En caso de reuniones presenciales estrictamente necesaria considera lo siguiente:\n*Distanciamiento social.\n*Tiempo de reunión para control de lavado de manos cada 60 minutos.\n*Limpieza y Desinfección del área de reunión antes y después.","En caso de reuniones presenciales estrictamente necesaria considera lo siguiente:\n*Distanciamiento social.\n*Tiempo de reunión para control de lavado de manos cada 60 minutos.\n*Limpieza y Desinfección del área de reunión antes y después.","En caso de reuniones presenciales estrictamente necesaria considera lo siguiente:\n*Distanciamiento social.\n*Tiempo de reunión para control de lavado de manos cada 60 minutos.\n*Limpieza y Desinfección del área de reunión antes y después.","En caso de reuniones presenciales estrictamente necesaria considera lo siguiente:\n*Distanciamiento social.\n*Tiempo de reunión para control de lavado de manos cada 60 minutos.\n*Limpieza y Desinfección del área de reunión antes y después.",null,null,null,"",null,null,null,null,null,null,null,null,null,null,null,null,null,null,null,null,null,null,null,null,null,null,null,null,null,null,null,null,null,null,null,null,null,null,null,null,null,null,"N",3]
[null,9,"Garantiza que las personas trabajadoras, clientela, visitantes y personas proveedoras cuenten con los insumos para lavado de manos como: agua potable, jabón líquido desinfectante, alcohol en gel en su dispensador con una composición entre de 60% y 70%, desinfectantes, toallas desechables, entre otros.","Garantiza que las personas trabajadoras, clientela, visitantes y personas proveedoras cuenten con los insumos para lavado de manos como: agua potable, jabón líquido desinfectante, alcohol en gel en su dispensador con una composición entre de 60% y 70%, desinfectantes, toallas desechables, entre otros.","Garantiza que las personas trabajadoras, clientela, visitantes y personas proveedoras cuenten con los insumos para lavado de manos como: agua potable, jabón líquido desinfectante, alcohol en gel en su dispensador con una composición entre de 60% y 70%, desinfectantes, toallas desechables, entre otros.","Garantiza que las personas trabajadoras, clientela, visitantes y personas proveedoras cuenten con los insumos para lavado de manos como: agua potable, jabón líquido desinfectante, alcohol en gel en su dispensador con una composición entre de 60% y 70%, desinfectantes, toallas desechables, entre otros.","Garantiza que las personas trabajadoras, clientela, visitantes y personas proveedoras cuenten con los insumos para lavado de manos como: agua potable, jabón líquido desinfectante, alcohol en gel en su dispensador con una composición entre de 60% y 70%, desinfectantes, toallas desechables, entre otros.","Garantiza que las personas trabajadoras, clientela, visitantes y personas proveedoras cuenten con los insumos para lavado de manos como: agua potable, jabón líquido desinfectante, alcohol en gel en su dispensador con una composición entre de 60% y 70%, desinfectantes, toallas desechables, entre otros.","Garantiza que las personas trabajadoras, clientela, visitantes y personas proveedoras cuenten con los insumos para lavado de manos como: agua potable, jabón líquido desinfectante, alcohol en gel en su dispensador con una composición entre de 60% y 70%, desinfectantes, toallas desechables, entre otros.","Garantiza que las personas trabajadoras, clientela, visitantes y personas proveedoras cuenten con los insumos para lavado de manos como: agua potable, jabón líquido desinfectante, alcohol en gel en su dispensador con una composición entre de 60% y 70%, desinfectantes, toallas desechables, entre otros.","Garantiza que las personas trabajadoras, clientela, visitantes y personas proveedoras cuenten con los insumos para lavado de manos como: agua potable, jabón líquido desinfectante, alcohol en gel en su dispensador con una composición entre de 60% y 70%, desinfectantes, toallas desechables, entre otros.",null,null,null,"",null,null,null,null,null,null,null,null,null,null,null,null,null,null,null,null,null,null,null,null,null,null,null,null,null,null,null,null,null,null,null,null,null,null,null,null,null,null,"N",3]
[null,10,"Cuenta con funciones que pueden ser teletrabajables por las personas trabajadoras.","Cuenta con funciones que pueden ser teletrabajables por las personas trabajadoras.","Cuenta con funciones que pueden ser teletrabajables por las personas trabajadoras.","Cuenta con funciones que pueden ser teletrabajables por las personas trabajadoras.","Cuenta con funciones que pueden ser teletrabajables por las personas trabajadoras.","Cuenta con funciones que pueden ser teletrabajables por las personas trabajadoras.","Cuenta con funciones que pueden ser teletrabajables por las personas trabajadoras.","Cuenta con funciones que pueden ser teletrabajables por las personas trabajadoras.","Cuenta con funciones que pueden ser teletrabajables por las personas trabajadoras.",null,null,null,"",null,null,null,null,null,null,null,null,null,null,null,null,null,null,null,null,null,null,null,null,null,null,null,null,null,null,null,null,null,null,null,null,null,null,null,null,null,null,"N",3]
[null,11,"Identifica y modifica, aquellos servicios que faciliten la interacción entre la persona trabajadora y la persona turista para reducirlos al mínimo, sin mermar la calidad de la atención","Identifica y modifica, aquellos servicios que faciliten la interacción entre la persona trabajadora y la persona turista para reducirlos al mínimo, sin mermar la calidad de la atención","Identifica y modifica, aquellos servicios que faciliten la interacción entre la persona trabajadora y la persona turista para reducirlos al mínimo, sin mermar la calidad de la atención","Identifica y modifica, aquellos servicios que faciliten la interacción entre la persona trabajadora y la persona turista para reducirlos al mínimo, sin mermar la calidad de la atención","Identifica y modifica, aquellos servicios que faciliten la interacción entre la persona trabajadora y la persona turista para reducirlos al mínimo, sin mermar la calidad de la atención","Identifica y modifica, aquellos servicios que faciliten la interacción entre la persona trabajadora y la persona turista para reducirlos al mínimo, sin mermar la calidad de la atención","Identifica y modifica, aquellos servicios que faciliten la interacción entre la persona trabajadora y la persona turista para reducirlos al mínimo, sin mermar la calidad de la atención","Identifica y modifica, aquellos servicios que faciliten la interacción entre la persona trabajadora y la persona turista para reducirlos al mínimo, sin mermar la calidad de la atención","Identifica y modifica, aquellos servicios que faciliten la interacción entre la persona trabajadora y la persona turista para reducirlos al mínimo, sin mermar la calidad de la atención",null,null,null,"",null,null,null,null,null,null,null,null,null,null,null,null,null,null,null,null,null,null,null,null,null,null,null,null,null,null,null,null,null,null,null,null,null,null,null,null,null,null,"N",3]
[null,"B","DISPOSICIONES GENERALES PARA COLABORADORES, INCLUYENDO PERSONAL NO ADMINISTRATIVO (BACK) DEL SECTOR TURÍSTICO",null,null,null,null,null,null,null,null,null,null,null,null,null,null,null,null,null,null,null,null,null,null,null,null,null,null,null,null,null,null,null,null,null,null,null,null,null,null,null,null,null,null,null,null,null,null,null,null,null,null," "]
[null,12,"El personal cumple con las normas de higiene personal yprotocolos establecidos por el Ministerio de Salud.","El personal cumple con las normas de higiene personal yprotocolos establecidos por el Ministerio de Salud.","El personal cumple con las normas de higiene personal yprotocolos establecidos por el Ministerio de Salud.","El personal cumple con las normas de higiene personal yprotocolos establecidos por el Ministerio de Salud.","El personal cumple con las normas de higiene personal yprotocolos establecidos por el Ministerio de Salud.","El personal cumple con las normas de higiene personal yprotocolos establecidos por el Ministerio de Salud.","El personal cumple con las normas de higiene personal yprotocolos establecidos por el Ministerio de Salud.","El personal cumple con las normas de higiene personal yprotocolos establecidos por el Ministerio de Salud.","El personal cumple con las normas de higiene personal yprotocolos establecidos por el Ministerio de Salud.",null,null,null,"",null,null,null,null,null,null,null,null,null,null,null,null,null,null,null,null,null,null,null,null,null,null,null,null,null,null,null,null,null,null,null,null,null,null,null,null,null,null,"N",3]
[null,13,"Mantiene en áreas de procesamiento una distancia mínima de 1.8 metros entre cada persona colaboradora.","Mantiene en áreas de procesamiento una distancia mínima de 1.8 metros entre cada persona colaboradora.","Mantiene en áreas de procesamiento una distancia mínima de 1.8 metros entre cada persona colaboradora.","Mantiene en áreas de procesamiento una distancia mínima de 1.8 metros entre cada persona colaboradora.","Mantiene en áreas de procesamiento una distancia mínima de 1.8 metros entre cada persona colaboradora.","Mantiene en áreas de procesamiento una distancia mínima de 1.8 metros entre cada persona colaboradora.","Mantiene en áreas de procesamiento una distancia mínima de 1.8 metros entre cada persona colaboradora.","Mantiene en áreas de procesamiento una distancia mínima de 1.8 metros entre cada persona colaboradora.","Mantiene en áreas de procesamiento una distancia mínima de 1.8 metros entre cada persona colaboradora.",null,null,null,"",null,null,null,null,null,null,null,null,null,null,null,null,null,null,null,null,null,null,null,null,null,null,null,null,null,null,null,null,null,null,null,null,null,null,null,null,null,null,"N",3]
[null,14,"Resguardan sus celulares en sus respectivos casilleros (lockers) o bolso de uso personal,en caso de  hacer uso del celular lo desinfecta con frecuencia.\n","Resguardan sus celulares en sus respectivos casilleros (lockers) o bolso de uso personal,en caso de  hacer uso del celular lo desinfecta con frecuencia.\n","Resguardan sus celulares en sus respectivos casilleros (lockers) o bolso de uso personal,en caso de  hacer uso del celular lo desinfecta con frecuencia.\n","Resguardan sus celulares en sus respectivos casilleros (lockers) o bolso de uso personal,en caso de  hacer uso del celular lo desinfecta con frecuencia.\n","Resguardan sus celulares en sus respectivos casilleros (lockers) o bolso de uso personal,en caso de  hacer uso del celular lo desinfecta con frecuencia.\n","Resguardan sus celulares en sus respectivos casilleros (lockers) o bolso de uso personal,en caso de  hacer uso del celular lo desinfecta con frecuencia.\n","Resguardan sus celulares en sus respectivos casilleros (lockers) o bolso de uso personal,en caso de  hacer uso del celular lo desinfecta con frecuencia.\n","Resguardan sus celulares en sus respectivos casilleros (lockers) o bolso de uso personal,en caso de  hacer uso del celular lo desinfecta con frecuencia.\n","Resguardan sus celulares en sus respectivos casilleros (lockers) o bolso de uso personal,en caso de  hacer uso del celular lo desinfecta con frecuencia.\n",null,null,null,"",null,null,null,null,null,null,null,null,null,null,null,null,null,null,null,null,null,null,null,null,null,null,null,null,null,null,null,null,null,null,null,null,null,null,null,null,null,null,"N",3]
[null,15,"Mantienen limpios sus artículos personales para uso en el lugar de trabajo como: lentes, tabletas, lapiceros, agendas, entre otros.","Mantienen limpios sus artículos personales para uso en el lugar de trabajo como: lentes, tabletas, lapiceros, agendas, entre otros.","Mantienen limpios sus artículos personales para uso en el lugar de trabajo como: lentes, tabletas, lapiceros, agendas, entre otros.","Mantienen limpios sus artículos personales para uso en el lugar de trabajo como: lentes, tabletas, lapiceros, agendas, entre otros.","Mantienen limpios sus artículos personales para uso en el lugar de trabajo como: lentes, tabletas, lapiceros, agendas, entre otros.","Mantienen limpios sus artículos personales para uso en el lugar de trabajo como: lentes, tabletas, lapiceros, agendas, entre otros.","Mantienen limpios sus artículos personales para uso en el lugar de trabajo como: lentes, tabletas, lapiceros, agendas, entre otros.","Mantienen limpios sus artículos personales para uso en el lugar de trabajo como: lentes, tabletas, lapiceros, agendas, entre otros.","Mantienen limpios sus artículos personales para uso en el lugar de trabajo como: lentes, tabletas, lapiceros, agendas, entre otros.",null,null,null,"",null,null,null,null,null,null,null,null,null,null,null,null,null,null,null,null,null,null,null,null,null,null,null,null,null,null,null,null,null,null,null,null,null,null,null,null,null,null,"N",3]
[null,"II","MEDIAS PARA MANTENER EL DISTANCIAMIENTO SOCIAL ENTRE CLIENTES Y COLABORADORES",null,null,null,null,null,null,null,null,null,null,null,null,null,null,null,null,null,null,null,null,null,null,null,null,null,null,null,null,null,null,null,null,null,null,null,null,null,null,null,null,null,null,null,null,null,null,null,null,null,null," "]
[null,"A","GENERALES  ",null,null,null,null,null,null,null,null,null,null,null,null,null,null,null,null,null,null,null,null,null,null,null,null,null,null,null,null,null,null,null,null,null,null,null,null,null,null,null,null,null,null,null,null,null,null,null,null,null,null," "]
[null,16,"Se colocan marcas en el piso (puede usarse cinta adhesiva de color) para indicarle a la clientela como deben ubicarse cuando hacen fila en zona de cajas, baños, ingreso a área de espera para ser ubicados.","Se colocan marcas en el piso (puede usarse cinta adhesiva de color) para indicarle a la clientela como deben ubicarse cuando hacen fila en zona de cajas, baños, ingreso de local, área de espera para ser ubicado en la mesa (zona interna y externa del local).","Se colocan marcas en el piso (puede usarse cinta adhesiva de color) para indicarle a la clientela como deben ubicarse cuando hacen fila en zona de cajas, baños, ingreso de local, área de espera para ser ubicado en la mesa (zona interna y externa del local).","Se colocan marcas en el piso (puede usarse cinta adhesiva de color) para indicarle a la clientela como deben ubicarse cuando hacen fila en zona de cajas, baños, ingreso de local, área de espera para ser ubicado en la mesa (zona interna y externa del local).","Se colocan marcas en el piso (puede usarse cinta adhesiva de color) para indicarle a la clientela como deben ubicarse cuando hacen fila en zona de cajas, baños, ingreso de local, área de espera para ser ubicado en la mesa (zona interna y externa del local).","Se colocan marcas en el piso (puede usarse cinta adhesiva de color) para indicarle a la clientela como deben ubicarse cuando hacen fila en zona de cajas, baños, ingreso de local, área de espera para ser ubicado en la mesa (zona interna y externa del local).","Se colocan marcas en el piso (puede usarse cinta adhesiva de color) para indicarle a la clientela como deben ubicarse cuando hacen fila en zona de cajas, baños, ingreso de local, área de espera para ser ubicado en la mesa (zona interna y externa del local).","Se colocan marcas en el piso (puede usarse cinta adhesiva de color) para indicarle a la clientela como deben ubicarse cuando hacen fila en zona de cajas, baños, ingreso de local, área de espera para ser ubicado en la mesa (zona interna y externa del local).","Se colocan marcas en el piso (puede usarse cinta adhesiva de color) para indicarle a la clientela como deben ubicarse cuando hacen fila en zona de cajas, baños, ingreso de local, área de espera para ser ubicado en la mesa (zona interna y externa del local).",null,null,null,{"$f":"IF(OR(BB32=1),\"OK\",IF(BC32=2,\"Deficiente\",\"\"))","v":""},null,null,null,null,null,null,null,null,null,null,null,null,null,null,null,null,null,null,null,null,null,null,null,null,null,null,null,null,null,null,null,null,null,null,null,null,null,null,"N",3]
[null,17,"Colocan rótulos en el local para recordar a la clientela y  al personal mantener el distanciamiento social de 1,8 metros (zona de ingreso al local, baños, zona de descanso de colaboradores, área de entrega de pedidos, área de cajas, entre otros).","Colocan rótulos en el local para recordar a la clientela y  al personal mantener el distanciamiento social de 1,8 metros (zona de ingreso al local, baños, zona de descanso de colaboradores, área de entrega de pedidos, área de cajas, entre otros).","Colocan rótulos en el local para recordar a la clientela y  al personal mantener el distanciamiento social de 1,8 metros (zona de ingreso al local, baños, zona de descanso de colaboradores, área de entrega de pedidos, área de cajas, entre otros).","Colocan rótulos en el local para recordar a la clientela y  al personal mantener el distanciamiento social de 1,8 metros (zona de ingreso al local, baños, zona de descanso de colaboradores, área de entrega de pedidos, área de cajas, entre otros).","Colocan rótulos en el local para recordar a la clientela y  al personal mantener el distanciamiento social de 1,8 metros (zona de ingreso al local, baños, zona de descanso de colaboradores, área de entrega de pedidos, área de cajas, entre otros).","Colocan rótulos en el local para recordar a la clientela y  al personal mantener el distanciamiento social de 1,8 metros (zona de ingreso al local, baños, zona de descanso de colaboradores, área de entrega de pedidos, área de cajas, entre otros).","Colocan rótulos en el local para recordar a la clientela y  al personal mantener el distanciamiento social de 1,8 metros (zona de ingreso al local, baños, zona de descanso de colaboradores, área de entrega de pedidos, área de cajas, entre otros).","Colocan rótulos en el local para recordar a la clientela y  al personal mantener el distanciamiento social de 1,8 metros (zona de ingreso al local, baños, zona de descanso de colaboradores, área de entrega de pedidos, área de cajas, entre otros).","Colocan rótulos en el local para recordar a la clientela y  al personal mantener el distanciamiento social de 1,8 metros (zona de ingreso al local, baños, zona de descanso de colaboradores, área de entrega de pedidos, área de cajas, entre otros).",null,null,null,{"$f":"IF(OR(BB33=1),\"OK\",IF(BC33=2,\"Deficiente\",\"\"))","v":""},null,null,null,null,null,null,null,null,null,null,null,null,null,null,null,null,null,null,null,null,null,null,null,null,null,null,null,null,null,null,null,null,null,null,null,null,null,null,"N",3]
[null,18,"Utilizan mecanismos de pago sin contacto y minimiza la manipulación de dinero  para mantener la distancia entre la clientela y el personal, por ejemplo: datáfonos para tarjetas de chip.\n","Utilizan mecanismos de pago sin contacto y minimiza la manipulación de dinero  para mantener la distancia entre la clientela y el personal, por ejemplo: datáfonos para tarjetas de chip.\n","Utilizan mecanismos de pago sin contacto y minimiza la manipulación de dinero  para mantener la distancia entre la clientela y el personal, por ejemplo: datáfonos para tarjetas de chip.\n","Utilizan mecanismos de pago sin contacto y minimiza la manipulación de dinero  para mantener la distancia entre la clientela y el personal, por ejemplo: datáfonos para tarjetas de chip.\n","Utilizan mecanismos de pago sin contacto y minimiza la manipulación de dinero  para mantener la distancia entre la clientela y el personal, por ejemplo: datáfonos para tarjetas de chip.\n","Utilizan mecanismos de pago sin contacto y minimiza la manipulación de dinero  para mantener la distancia entre la clientela y el personal, por ejemplo: datáfonos para tarjetas de chip.\n","Utilizan mecanismos de pago sin contacto y minimiza la manipulación de dinero  para mantener la distancia entre la clientela y el personal, por ejemplo: datáfonos para tarjetas de chip.\n","Utilizan mecanismos de pago sin contacto y minimiza la manipulación de dinero  para mantener la distancia entre la clientela y el personal, por ejemplo: datáfonos para tarjetas de chip.\n","Utilizan mecanismos de pago sin contacto y minimiza la manipulación de dinero  para mantener la distancia entre la clientela y el personal, por ejemplo: datáfonos para tarjetas de chip.\n",null,null,null,"",null,null,null,null,null,null,null,null,null,null,null,null,null,null,null,null,null,null,null,null,null,null,null,null,null,null,null,null,null,null,null,null,null,null,null,null,null,null,"N",3]
[null,19,"En caso de manejar dinero sigue las siguientes instrucciones: \n1. No tocarse la cara después de manipular el dinero. \n2. Solicitar al cliente colocar el dinero sobre el mostrador u otra superficie (analizar uso de bandejas plásticas para el manejo del dinero), no recibirlo directamente en las manos. \n3. Desinfectar manos, el mostrador y superficie en contacto con el dinero.","En caso de manejar dinero sigue las siguientes instrucciones: \n1. No tocarse la cara después de manipular el dinero. \n2. Solicitar al cliente colocar el dinero sobre el mostrador u otra superficie (analizar uso de bandejas plásticas para el manejo del dinero), no recibirlo directamente en las manos. \n3. Desinfectar manos, el mostrador y superficie en contacto con el dinero.","En caso de manejar dinero sigue las siguientes instrucciones: \n1. No tocarse la cara después de manipular el dinero. \n2. Solicitar al cliente colocar el dinero sobre el mostrador u otra superficie (analizar uso de bandejas plásticas para el manejo del dinero), no recibirlo directamente en las manos. \n3. Desinfectar manos, el mostrador y superficie en contacto con el dinero.","En caso de manejar dinero sigue las siguientes instrucciones: \n1. No tocarse la cara después de manipular el dinero. \n2. Solicitar al cliente colocar el dinero sobre el mostrador u otra superficie (analizar uso de bandejas plásticas para el manejo del dinero), no recibirlo directamente en las manos. \n3. Desinfectar manos, el mostrador y superficie en contacto con el dinero.","En caso de manejar dinero sigue las siguientes instrucciones: \n1. No tocarse la cara después de manipular el dinero. \n2. Solicitar al cliente colocar el dinero sobre el mostrador u otra superficie (analizar uso de bandejas plásticas para el manejo del dinero), no recibirlo directamente en las manos. \n3. Desinfectar manos, el mostrador y superficie en contacto con el dinero.","En caso de manejar dinero sigue las siguientes instrucciones: \n1. No tocarse la cara después de manipular el dinero. \n2. Solicitar al cliente colocar el dinero sobre el mostrador u otra superficie (analizar uso de bandejas plásticas para el manejo del dinero), no recibirlo directamente en las manos. \n3. Desinfectar manos, el mostrador y superficie en contacto con el dinero.","En caso de manejar dinero sigue las siguientes instrucciones: \n1. No tocarse la cara después de manipular el dinero. \n2. Solicitar al cliente colocar el dinero sobre el mostrador u otra superficie (analizar uso de bandejas plásticas para el manejo del dinero), no recibirlo directamente en las manos. \n3. Desinfectar manos, el mostrador y superficie en contacto con el dinero.","En caso de manejar dinero sigue las siguientes instrucciones: \n1. No tocarse la cara después de manipular el dinero. \n2. Solicitar al cliente colocar el dinero sobre el mostrador u otra superficie (analizar uso de bandejas plásticas para el manejo del dinero), no recibirlo directamente en las manos. \n3. Desinfectar manos, el mostrador y superficie en contacto con el dinero.","En caso de manejar dinero sigue las siguientes instrucciones: \n1. No tocarse la cara después de manipular el dinero. \n2. Solicitar al cliente colocar el dinero sobre el mostrador u otra superficie (analizar uso de bandejas plásticas para el manejo del dinero), no recibirlo directamente en las manos. \n3. Desinfectar manos, el mostrador y superficie en contacto con el dinero.",null,null,null,"",null,null,null,null,null,null,null,null,null,null,null,null,null,null,null,null,null,null,null,null,null,null,null,null,null,null,null,null,null,null,null,null,null,null,null,null,null,null,"N",3]
[null,20,"Cuentan con barreras entre el personal y la clientela, por ejemplo uso de plástico o acrílico transparante en la zona de cajas.","Cuentan con barreras entre el personal y la clientela, por ejemplo uso de plástico o acrílico transparante en la zona de cajas.","Cuentan con barreras entre el personal y la clientela, por ejemplo uso de plástico o acrílico transparante en la zona de cajas.","Cuentan con barreras entre el personal y la clientela, por ejemplo uso de plástico o acrílico transparante en la zona de cajas.","Cuentan con barreras entre el personal y la clientela, por ejemplo uso de plástico o acrílico transparante en la zona de cajas.","Cuentan con barreras entre el personal y la clientela, por ejemplo uso de plástico o acrílico transparante en la zona de cajas.","Cuentan con barreras entre el personal y la clientela, por ejemplo uso de plástico o acrílico transparante en la zona de cajas.","Cuentan con barreras entre el personal y la clientela, por ejemplo uso de plástico o acrílico transparante en la zona de cajas.","Cuentan con barreras entre el personal y la clientela, por ejemplo uso de plástico o acrílico transparante en la zona de cajas.",null,null,null,"",null,null,null,null,null,null,null,null,null,null,null,null,null,null,null,null,null,null,null,null,null,null,null,null,null,null,null,null,null,null,null,null,null,null,null,null,null,null,"N",3]
[null,21,"Evita compartir equipos de trabajo o dispositivos entre personas trabajadoras, en caso de hacerlo se establece protocolo de limpieza y desinfección.","Evita compartir equipos de trabajo o dispositivos entre personas trabajadoras, en caso de hacerlo se establece protocolo de limpieza y desinfección.","Evita compartir equipos de trabajo o dispositivos entre personas trabajadoras, en caso de hacerlo se establece protocolo de limpieza y desinfección.","Evita compartir equipos de trabajo o dispositivos entre personas trabajadoras, en caso de hacerlo se establece protocolo de limpieza y desinfección.","Evita compartir equipos de trabajo o dispositivos entre personas trabajadoras, en caso de hacerlo se establece protocolo de limpieza y desinfección.","Evita compartir equipos de trabajo o dispositivos entre personas trabajadoras, en caso de hacerlo se establece protocolo de limpieza y desinfección.","Evita compartir equipos de trabajo o dispositivos entre personas trabajadoras, en caso de hacerlo se establece protocolo de limpieza y desinfección.","Evita compartir equipos de trabajo o dispositivos entre personas trabajadoras, en caso de hacerlo se establece protocolo de limpieza y desinfección.","Evita compartir equipos de trabajo o dispositivos entre personas trabajadoras, en caso de hacerlo se establece protocolo de limpieza y desinfección.",null,null,null,"",null,null,null,null,null,null,null,null,null,null,null,null,null,null,null,null,null,null,null,null,null,null,null,null,null,null,null,null,null,null,null,null,null,null,null,null,null,null,"N",3]
[null,22,"En el momento de la entrega de tarjetas o llaves, éstas deben entregarse limpias y desinfectadas. A la salida, las mismas deberán ser nuevamente limpiadas y desinfectadas por el personal de recepción.","En el momento de la entrega de tarjetas o llaves, éstas deben entregarse limpias y desinfectadas. A la salida, las mismas deberán ser nuevamente limpiadas y desinfectadas por el personal de recepción.","En el momento de la entrega de tarjetas o llaves, éstas deben entregarse limpias y desinfectadas. A la salida, las mismas deberán ser nuevamente limpiadas y desinfectadas por el personal de recepción.","En el momento de la entrega de tarjetas o llaves, éstas deben entregarse limpias y desinfectadas. A la salida, las mismas deberán ser nuevamente limpiadas y desinfectadas por el personal de recepción.","En el momento de la entrega de tarjetas o llaves, éstas deben entregarse limpias y desinfectadas. A la salida, las mismas deberán ser nuevamente limpiadas y desinfectadas por el personal de recepción.","En el momento de la entrega de tarjetas o llaves, éstas deben entregarse limpias y desinfectadas. A la salida, las mismas deberán ser nuevamente limpiadas y desinfectadas por el personal de recepción.","En el momento de la entrega de tarjetas o llaves, éstas deben entregarse limpias y desinfectadas. A la salida, las mismas deberán ser nuevamente limpiadas y desinfectadas por el personal de recepción.","En el momento de la entrega de tarjetas o llaves, éstas deben entregarse limpias y desinfectadas. A la salida, las mismas deberán ser nuevamente limpiadas y desinfectadas por el personal de recepción.","En el momento de la entrega de tarjetas o llaves, éstas deben entregarse limpias y desinfectadas. A la salida, las mismas deberán ser nuevamente limpiadas y desinfectadas por el personal de recepción.",null,null,null,"",null,null,null,null,null,null,null,null,null,null,null,null,null,null,null,null,null,null,null,null,null,null,null,null,null,null,null,null,null,null,null,null,null,null,null,null,null,null,"N",3]
[null,"B","DISPOSICIONES SOBRE ÁREAS COMUNES (ÁREA DE COMIDAS, PISCINAS, JACUZZIS, BAR, GIMNASIO, DISCOTECA, CASINOS, SPA, SAUNAS, ÁREAS VERDES Y ELEVADORES)",null,null,null,null,null,null,null,null,null,null,null,null,null,null,null,null,null,null,null,null,null,null,null,null,null,null,null,null,null,null,null,null,null,null,null,null,null,null,null,null,null,null,null,null,null,null,null,null,null,null," "]
[null,23,"Mantiene un nivel de ocupación considerando los lineamientos establecidos por la autoridad sanitaria.","Mantiene un nivel de ocupación considerando los lineamientos establecidos por la autoridad sanitaria.","Mantiene un nivel de ocupación considerando los lineamientos establecidos por la autoridad sanitaria.","Mantiene un nivel de ocupación considerando los lineamientos establecidos por la autoridad sanitaria.","Mantiene un nivel de ocupación considerando los lineamientos establecidos por la autoridad sanitaria.","Mantiene un nivel de ocupación considerando los lineamientos establecidos por la autoridad sanitaria.","Mantiene un nivel de ocupación considerando los lineamientos establecidos por la autoridad sanitaria.","Mantiene un nivel de ocupación considerando los lineamientos establecidos por la autoridad sanitaria.","Mantiene un nivel de ocupación considerando los lineamientos establecidos por la autoridad sanitaria.",null,null,null,"",null,null,null,null,null,null,null,null,null,null,null,null,null,null,null,null,null,null,null,null,null,null,null,null,null,null,null,null,null,null,null,null,null,null,null,null,null,null,"N",3]
[null,24,"Controla la capacidad del elvador manteniedo el distanciamiento social de acuerdo a los lineamientos de las autoridades sanitarias y cuenta con rotulación clara y visible. ","Controla la capacidad del elvador manteniedo el distanciamiento social de acuerdo a los lineamientos de las autoridades sanitarias y cuenta con rotulación clara y visible. ","Controla la capacidad del elvador manteniedo el distanciamiento social de acuerdo a los lineamientos de las autoridades sanitarias y cuenta con rotulación clara y visible. ","Controla la capacidad del elvador manteniedo el distanciamiento social de acuerdo a los lineamientos de las autoridades sanitarias y cuenta con rotulación clara y visible. ","Controla la capacidad del elvador manteniedo el distanciamiento social de acuerdo a los lineamientos de las autoridades sanitarias y cuenta con rotulación clara y visible. ","Controla la capacidad del elvador manteniedo el distanciamiento social de acuerdo a los lineamientos de las autoridades sanitarias y cuenta con rotulación clara y visible. ","Controla la capacidad del elvador manteniedo el distanciamiento social de acuerdo a los lineamientos de las autoridades sanitarias y cuenta con rotulación clara y visible. ","Controla la capacidad del elvador manteniedo el distanciamiento social de acuerdo a los lineamientos de las autoridades sanitarias y cuenta con rotulación clara y visible. ","Controla la capacidad del elvador manteniedo el distanciamiento social de acuerdo a los lineamientos de las autoridades sanitarias y cuenta con rotulación clara y visible. ",null,null,null,"",null,null,null,null,null,null,null,null,null,null,null,null,null,null,null,null,null,null,null,null,null,null,null,null,null,null,null,null,null,null,null,null,null,null,null,null,null,null,"N",3]
[null,"III","MEDIDAS PARA MANTENER EL DISTANCIAMIENTO SOCIAL ENTRE LOS COLABORADORES:",null,null,null,null,null,null,null,null,null,null,null,null,null,null,null,null,null,null,null,null,null,null,null,null,null,null,null,null,null,null,null,null,null,null,null,null,null,null,null,null,null,null,null,null,null,null,null,null,null,null," "]
[null,"A","AREAS DONDE SE CONSIDERA NECESARIO",null,null,null,null,null,null,null,null,null,null,null,null,null,null,null,null,null,null,null,null,null,null,null,null,null,null,null,null,null,null,null,null,null,null,null,null,null,null,null,null,null,null,null,null,null,null,null,null,null,null," "]
[null,25,"El personal mantiene el distanciamieto social o con barreras físicas (mamparas acílicas o plásticas) y se ubican de forma tal que no se colocan una persona frente a la otra.","El personal mantiene el distanciamieto social o con barreras físicas (mamparas acílicas o plásticas) y se ubican de forma tal que no se colocan una persona frente a la otra.","El personal mantiene el distanciamieto social o con barreras físicas (mamparas acílicas o plásticas) y se ubican de forma tal que no se colocan una persona frente a la otra.","El personal mantiene el distanciamieto social o con barreras físicas (mamparas acílicas o plásticas) y se ubican de forma tal que no se colocan una persona frente a la otra.","El personal mantiene el distanciamieto social o con barreras físicas (mamparas acílicas o plásticas) y se ubican de forma tal que no se colocan una persona frente a la otra.","El personal mantiene el distanciamieto social o con barreras físicas (mamparas acílicas o plásticas) y se ubican de forma tal que no se colocan una persona frente a la otra.","El personal mantiene el distanciamieto social o con barreras físicas (mamparas acílicas o plásticas) y se ubican de forma tal que no se colocan una persona frente a la otra.","El personal mantiene el distanciamieto social o con barreras físicas (mamparas acílicas o plásticas) y se ubican de forma tal que no se colocan una persona frente a la otra.","El personal mantiene el distanciamieto social o con barreras físicas (mamparas acílicas o plásticas) y se ubican de forma tal que no se colocan una persona frente a la otra.",null,null,null,{"$f":"IF(OR(BB44=1),\"OK\",IF(BC44=2,\"Deficiente\",\"\"))","v":""},null,null,null,null,null,null,null,null,null,null,null,null,null,null,null,null,null,null,null,null,null,null,null,null,null,null,null,null,null,null,null,null,null,null,null,null,null,null,"N",3]
[null,26,"Utiliza el equipo de protección personal durante la jornada laboral.","Utiliza el equipo de protección personal durante la jornada laboral.","Utiliza el equipo de protección personal durante la jornada laboral.","Utiliza el equipo de protección personal durante la jornada laboral.","Utiliza el equipo de protección personal durante la jornada laboral.","Utiliza el equipo de protección personal durante la jornada laboral.","Utiliza el equipo de protección personal durante la jornada laboral.","Utiliza el equipo de protección personal durante la jornada laboral.","Utiliza el equipo de protección personal durante la jornada laboral.",null,null,null,"",null,null,null,null,null,null,null,null,null,null,null,null,null,null,null,null,null,null,null,null,null,null,null,null,null,null,null,null,null,null,null,null,null,null,null,null,null,null,"N",3]
[null,"B","ZONA DE COMEDOR, CASILLEROS (LOCKERS)",null,null,null,null,null,null,null,null,null,null,null,null,null,null,null,null,null,null,null,null,null,null,null,null,null,null,null,null,null,null,null,null,null,null,null,null,null,null,null,null,null,null,null,null,null,null,null,null,null,null," "]
[null,27,"Ajusta la zona de descanso y comedor del personal para mantener el distanciamiento social (por ejemplo, separar las mesas, reducir el número de sillas por mesa, asignar turnos a grupos reducidos).","Ajusta la zona de descanso y comedor del personal para mantener el distanciamiento social (por ejemplo, separar las mesas, reducir el número de sillas por mesa, asignar turnos a grupos reducidos).","Ajusta la zona de descanso y comedor del personal para mantener el distanciamiento social (por ejemplo, separar las mesas, reducir el número de sillas por mesa, asignar turnos a grupos reducidos).","Ajusta la zona de descanso y comedor del personal para mantener el distanciamiento social (por ejemplo, separar las mesas, reducir el número de sillas por mesa, asignar turnos a grupos reducidos).","Ajusta la zona de descanso y comedor del personal para mantener el distanciamiento social (por ejemplo, separar las mesas, reducir el número de sillas por mesa, asignar turnos a grupos reducidos).","Ajusta la zona de descanso y comedor del personal para mantener el distanciamiento social (por ejemplo, separar las mesas, reducir el número de sillas por mesa, asignar turnos a grupos reducidos).","Ajusta la zona de descanso y comedor del personal para mantener el distanciamiento social (por ejemplo, separar las mesas, reducir el número de sillas por mesa, asignar turnos a grupos reducidos).","Ajusta la zona de descanso y comedor del personal para mantener el distanciamiento social (por ejemplo, separar las mesas, reducir el número de sillas por mesa, asignar turnos a grupos reducidos).","Ajusta la zona de descanso y comedor del personal para mantener el distanciamiento social (por ejemplo, separar las mesas, reducir el número de sillas por mesa, asignar turnos a grupos reducidos).",null,null,null,"",null,null,null,null,null,null,null,null,null,null,null,null,null,null,null,null,null,null,null,null,null,null,null,null,null,null,null,null,null,null,null,null,null,null,null,null,null,null,{"$f":"IF(OR(BC47=1),1,IF(BC47=2,0,\"N\"))","v":"N"},3]
[null,28,"Previene la aglomeración del personal en la zona de casilleros (principalmente en las horas de entrada o salida).","Previene la aglomeración del personal en la zona de casilleros (principalmente en las horas de entrada o salida).","Previene la aglomeración del personal en la zona de casilleros (principalmente en las horas de entrada o salida).","Previene la aglomeración del personal en la zona de casilleros (principalmente en las horas de entrada o salida).","Previene la aglomeración del personal en la zona de casilleros (principalmente en las horas de entrada o salida).","Previene la aglomeración del personal en la zona de casilleros (principalmente en las horas de entrada o salida).","Previene la aglomeración del personal en la zona de casilleros (principalmente en las horas de entrada o salida).","Previene la aglomeración del personal en la zona de casilleros (principalmente en las horas de entrada o salida).","Previene la aglomeración del personal en la zona de casilleros (principalmente en las horas de entrada o salida).",null,null,null,"",null,null,null,null,null,null,null,null,null,null,null,null,null,null,null,null,null,null,null,null,null,null,null,null,null,null,null,null,null,null,null,null,null,null,null,null,null,null,"N",3]
[null,29,"Limpia y desinfecta con frecuencia las zonas de comedor, descanso y áreas comunes del personal, colocando los protocolos publicados por el Ministerio de Salud.","Limpia y desinfecta con frecuencia las zonas de comedor, descanso y áreas comunes del personal, colocando los protocolos publicados por el Ministerio de Salud.","Limpia y desinfecta con frecuencia las zonas de comedor, descanso y áreas comunes del personal, colocando los protocolos publicados por el Ministerio de Salud.","Limpia y desinfecta con frecuencia las zonas de comedor, descanso y áreas comunes del personal, colocando los protocolos publicados por el Ministerio de Salud.","Limpia y desinfecta con frecuencia las zonas de comedor, descanso y áreas comunes del personal, colocando los protocolos publicados por el Ministerio de Salud.","Limpia y desinfecta con frecuencia las zonas de comedor, descanso y áreas comunes del personal, colocando los protocolos publicados por el Ministerio de Salud.","Limpia y desinfecta con frecuencia las zonas de comedor, descanso y áreas comunes del personal, colocando los protocolos publicados por el Ministerio de Salud.","Limpia y desinfecta con frecuencia las zonas de comedor, descanso y áreas comunes del personal, colocando los protocolos publicados por el Ministerio de Salud.","Limpia y desinfecta con frecuencia las zonas de comedor, descanso y áreas comunes del personal, colocando los protocolos publicados por el Ministerio de Salud.",null,null,null,{"$f":"IF(OR(BB49=1),\"OK\",IF(BC49=2,\"Deficiente\",\"\"))","v":""},null,null,null,null,null,null,null,null,null,null,null,null,null,null,null,null,null,null,null,null,null,null,null,null,null,null,null,null,null,null,null,null,null,null,null,null,null,null,"N",3]
[null,"C","TURNOS Y HORARIOS",null,null,null,null,null,null,null,null,null,null,null,null,null,null,null,null,null,null,null,null,null,null,null,null,null,null,null,null,null,null,null,null,null,null,null,null,null,null,null,null,null,null,null,null,null,null,null,null,null,null," "]
[null,30,"Determina el horario de trabajo de acuerdo con lo estipulado por el Ministerio de Salud y dependiendo de la modalidad de operación del establecimiento, manteniendo el debido distanciamiento social y la capacidad estipulada.",null,null,null,null,null,null,null,null,null,null,null,"",null,null,null,null,null,null,null,null,null,null,null,null,null,null,null,null,null,null,null,null,null,null,null,null,null,null,null,null,null,null,null,null,null,null,null,null,null,null,"N",3]
[null,"D","RECEPCIÓN DE PROVEEDORES",null,null,null,null,null,null,null,null,null,null,null,null,null,null,null,null,null,null,null,null,null,null,null,null,null,null,null,null,null,null,null,null,null,null,null,null,null,null,null,null,null,null,null,null,null,null,null,null,null,null," "]
[null,31,"Coloca afiches sobre los protocolos establecidos por el Ministerio de Salud.","Verifica el lavado o desinfección de manos, según protocolos establecidos.","Verifica el lavado o desinfección de manos, según protocolos establecidos.","Verifica el lavado o desinfección de manos, según protocolos establecidos.","Verifica el lavado o desinfección de manos, según protocolos establecidos.","Verifica el lavado o desinfección de manos, según protocolos establecidos.","Verifica el lavado o desinfección de manos, según protocolos establecidos.","Verifica el lavado o desinfección de manos, según protocolos establecidos.","Verifica el lavado o desinfección de manos, según protocolos establecidos.",null,null,null,{"$f":"IF(OR(BB53=1),\"OK\",IF(BC53=2,\"Deficiente\",\"\"))","v":""},null,null,null,null,null,null,null,null,null,null,null,null,null,null,null,null,null,null,null,null,null,null,null,null,null,null,null,null,null,null,null,null,null,null,null,null,null,null,"N",3]
[null,32,"Cuenta el establecimiento con un procedimiento para la atención de empresas proveedoras que incluya:\n*Uso de dispositivos móviles y artículos personales (lapiceros, calculadoras, tablas, entre otros).\n*Distanciamiento social.    *Control de tiempos de entrega.       *Limpieza y desinfección de contenedores.    *Entrega de productos en áreas asignadas.            *Uso de EPP","Cuenta el establecimiento con un procedimiento para la atención de empresas proveedoras que incluya:\n*Uso de dispositivos móviles y artículos personales (lapiceros, calculadoras, tablas, entre otros).\n*Distanciamiento social.\n*Control de tiempos de entrega.\n*Limpieza y desinfección de contenedores.\n*Entrega de productos en áreas asignadas.","Cuenta el establecimiento con un procedimiento para la atención de empresas proveedoras que incluya:\n*Uso de dispositivos móviles y artículos personales (lapiceros, calculadoras, tablas, entre otros).\n*Distanciamiento social.\n*Control de tiempos de entrega.\n*Limpieza y desinfección de contenedores.\n*Entrega de productos en áreas asignadas.","Cuenta el establecimiento con un procedimiento para la atención de empresas proveedoras que incluya:\n*Uso de dispositivos móviles y artículos personales (lapiceros, calculadoras, tablas, entre otros).\n*Distanciamiento social.\n*Control de tiempos de entrega.\n*Limpieza y desinfección de contenedores.\n*Entrega de productos en áreas asignadas.","Cuenta el establecimiento con un procedimiento para la atención de empresas proveedoras que incluya:\n*Uso de dispositivos móviles y artículos personales (lapiceros, calculadoras, tablas, entre otros).\n*Distanciamiento social.\n*Control de tiempos de entrega.\n*Limpieza y desinfección de contenedores.\n*Entrega de productos en áreas asignadas.","Cuenta el establecimiento con un procedimiento para la atención de empresas proveedoras que incluya:\n*Uso de dispositivos móviles y artículos personales (lapiceros, calculadoras, tablas, entre otros).\n*Distanciamiento social.\n*Control de tiempos de entrega.\n*Limpieza y desinfección de contenedores.\n*Entrega de productos en áreas asignadas.","Cuenta el establecimiento con un procedimiento para la atención de empresas proveedoras que incluya:\n*Uso de dispositivos móviles y artículos personales (lapiceros, calculadoras, tablas, entre otros).\n*Distanciamiento social.\n*Control de tiempos de entrega.\n*Limpieza y desinfección de contenedores.\n*Entrega de productos en áreas asignadas.","Cuenta el establecimiento con un procedimiento para la atención de empresas proveedoras que incluya:\n*Uso de dispositivos móviles y artículos personales (lapiceros, calculadoras, tablas, entre otros).\n*Distanciamiento social.\n*Control de tiempos de entrega.\n*Limpieza y desinfección de contenedores.\n*Entrega de productos en áreas asignadas.","Cuenta el establecimiento con un procedimiento para la atención de empresas proveedoras que incluya:\n*Uso de dispositivos móviles y artículos personales (lapiceros, calculadoras, tablas, entre otros).\n*Distanciamiento social.\n*Control de tiempos de entrega.\n*Limpieza y desinfección de contenedores.\n*Entrega de productos en áreas asignadas.",null,null,null,"",null,null,null,null,null,null,null,null,null,null,null,null,null,null,null,null,null,null,null,null,null,null,null,null,null,null,null,null,null,null,null,null,null,null,null,null,null,null,"N",3]
[null,33,"Coordinan los horarios de entrega y se indica el proceso de recepción de productos mediante rotulación.","Coordinan los horarios de entrega y se indica el proceso de recepción de productos mediante rotulación.","Coordinan los horarios de entrega y se indica el proceso de recepción de productos mediante rotulación.","Coordinan los horarios de entrega y se indica el proceso de recepción de productos mediante rotulación.","Coordinan los horarios de entrega y se indica el proceso de recepción de productos mediante rotulación.","Coordinan los horarios de entrega y se indica el proceso de recepción de productos mediante rotulación.","Coordinan los horarios de entrega y se indica el proceso de recepción de productos mediante rotulación.","Coordinan los horarios de entrega y se indica el proceso de recepción de productos mediante rotulación.","Coordinan los horarios de entrega y se indica el proceso de recepción de productos mediante rotulación.",null,null,null,{"$f":"IF(OR(BB55=1),\"OK\",IF(BC55=2,\"Deficiente\",\"\"))","v":""},null,null,null,null,null,null,null,null,null,null,null,null,null,null,null,null,null,null,null,null,null,null,null,null,null,null,null,null,null,null,null,null,null,null,null,null,null,null,"N",3]
[null,34,"El personal del establecimiento limpia y desinfecta la zona de recepción de productos con frecuencia.","El personal del establecimiento limpia y desinfecta la zona de recepción de productos con frecuencia.","El personal del establecimiento limpia y desinfecta la zona de recepción de productos con frecuencia.","El personal del establecimiento limpia y desinfecta la zona de recepción de productos con frecuencia.","El personal del establecimiento limpia y desinfecta la zona de recepción de productos con frecuencia.","El personal del establecimiento limpia y desinfecta la zona de recepción de productos con frecuencia.","El personal del establecimiento limpia y desinfecta la zona de recepción de productos con frecuencia.","El personal del establecimiento limpia y desinfecta la zona de recepción de productos con frecuencia.","El personal del establecimiento limpia y desinfecta la zona de recepción de productos con frecuencia.",null,null,null,"",null,null,null,null,null,null,null,null,null,null,null,null,null,null,null,null,null,null,null,null,null,null,null,null,null,null,null,null,null,null,null,null,null,null,null,null,null,null,"N",3]
[null,35,"Registra la entrada y salida de las personas proveedoras y visitantes.","Registra la entrada y salida de las personas proveedoras y visitantes.","Registra la entrada y salida de las personas proveedoras y visitantes.","Registra la entrada y salida de las personas proveedoras y visitantes.","Registra la entrada y salida de las personas proveedoras y visitantes.","Registra la entrada y salida de las personas proveedoras y visitantes.","Registra la entrada y salida de las personas proveedoras y visitantes.","Registra la entrada y salida de las personas proveedoras y visitantes.","Registra la entrada y salida de las personas proveedoras y visitantes.",null,null,null,{"$f":"IF(OR(BB57=1),\"OK\",IF(BC57=2,\"Deficiente\",\"\"))","v":""},null,null,null,null,null,null,null,null,null,null,null,null,null,null,null,null,null,null,null,null,null,null,null,null,null,null,null,null,null,null,null,null,null,null,null,null,null,null,"N",3]
[null,"E","SERVICIO DE TRANSPORTE PARA LA CLIENTELA Y TRABAJADORES",null,null,null,null,null,null,null,null,null,null,null,null,null,null,null,null,null,null,null,null,null,null,null,null,null,null,null,null,null,null,null,null,null,null,null,null,null,null,null,null,null,null,null,null,null,null,null,null,null,null," "]
[null,36,"Cuenta con: \n*Marcación en el piso de acuerdo al distanciamiento social. *Cumplimiento de protocolos   * Uso de EPP.","Cuenta con: \n*Marcación en el piso de acuerdo al distanciamiento social.\n*Cumplimiento de protocolos\n* Uso de EPP.","Cuenta con: \n*Marcación en el piso de acuerdo al distanciamiento social.\n*Cumplimiento de protocolos\n* Uso de EPP.","Cuenta con: \n*Marcación en el piso de acuerdo al distanciamiento social.\n*Cumplimiento de protocolos\n* Uso de EPP.","Cuenta con: \n*Marcación en el piso de acuerdo al distanciamiento social.\n*Cumplimiento de protocolos\n* Uso de EPP.","Cuenta con: \n*Marcación en el piso de acuerdo al distanciamiento social.\n*Cumplimiento de protocolos\n* Uso de EPP.","Cuenta con: \n*Marcación en el piso de acuerdo al distanciamiento social.\n*Cumplimiento de protocolos\n* Uso de EPP.","Cuenta con: \n*Marcación en el piso de acuerdo al distanciamiento social.\n*Cumplimiento de protocolos\n* Uso de EPP.","Cuenta con: \n*Marcación en el piso de acuerdo al distanciamiento social.\n*Cumplimiento de protocolos\n* Uso de EPP.",null,null,null,"",null,null,null,null,null,null,null,null,null,null,null,null,null,null,null,null,null,null,null,null,null,null,null,null,null,null,null,null,null,null,null,null,null,null,null,null,null,null,"N",3]
[null,37,"Utiliza alcohol en gel después de la manipulación de equipaje.","Utiliza alcohol en gel después de la manipulación de equipaje.","Utiliza alcohol en gel después de la manipulación de equipaje.","Utiliza alcohol en gel después de la manipulación de equipaje.","Utiliza alcohol en gel después de la manipulación de equipaje.","Utiliza alcohol en gel después de la manipulación de equipaje.","Utiliza alcohol en gel después de la manipulación de equipaje.","Utiliza alcohol en gel después de la manipulación de equipaje.","Utiliza alcohol en gel después de la manipulación de equipaje.",null,null,null,{"$f":"IF(OR(BB60=1),\"OK\",IF(BC60=2,\"Deficiente\",\"\"))","v":""},null,null,null,null,null,null,null,null,null,null,null,null,null,null,null,null,null,null,null,null,null,null,null,null,null,null,null,null,null,null,null,null,null,null,null,null,null,null,"N",3]
[null,38,"Utiliza rotulación de fácil compresión para indicar la zona y proceso de entrega.","Utiliza rotulación de fácil compresión para indicar la zona y proceso de entrega.","Utiliza rotulación de fácil compresión para indicar la zona y proceso de entrega.","Utiliza rotulación de fácil compresión para indicar la zona y proceso de entrega.","Utiliza rotulación de fácil compresión para indicar la zona y proceso de entrega.","Utiliza rotulación de fácil compresión para indicar la zona y proceso de entrega.","Utiliza rotulación de fácil compresión para indicar la zona y proceso de entrega.","Utiliza rotulación de fácil compresión para indicar la zona y proceso de entrega.","Utiliza rotulación de fácil compresión para indicar la zona y proceso de entrega.",null,null,null,"",null,null,null,null,null,null,null,null,null,null,null,null,null,null,null,null,null,null,null,null,null,null,null,null,null,null,null,null,null,null,null,null,null,null,null,null,null,null,"N",3]
[null,39,"Las  personas usan ropa o uniforme limpio todos los días.","Las  personas usan ropa o uniforme limpio todos los días.","Las  personas usan ropa o uniforme limpio todos los días.","Las  personas usan ropa o uniforme limpio todos los días.","Las  personas usan ropa o uniforme limpio todos los días.","Las  personas usan ropa o uniforme limpio todos los días.","Las  personas usan ropa o uniforme limpio todos los días.","Las  personas usan ropa o uniforme limpio todos los días.","Las  personas usan ropa o uniforme limpio todos los días.",null,null,null,{"$f":"IF(OR(BB62=1),\"OK\",IF(BC62=2,\"Deficiente\",\"\"))","v":""},null,null,null,null,null,null,null,null,null,null,null,null,null,null,null,null,null,null,null,null,null,null,null,null,null,null,null,null,null,null,null,null,null,null,null,null,null,null,"N",3]
[null,40,"Revisa las restricciones vehiculares o de movimientos de acuerdo con los lineamientos de los entes reguladores.","Revisa las restricciones vehiculares o de movimientos de acuerdo con los lineamientos de los entes reguladores.","Revisa las restricciones vehiculares o de movimientos de acuerdo con los lineamientos de los entes reguladores.","Revisa las restricciones vehiculares o de movimientos de acuerdo con los lineamientos de los entes reguladores.","Revisa las restricciones vehiculares o de movimientos de acuerdo con los lineamientos de los entes reguladores.","Revisa las restricciones vehiculares o de movimientos de acuerdo con los lineamientos de los entes reguladores.","Revisa las restricciones vehiculares o de movimientos de acuerdo con los lineamientos de los entes reguladores.","Revisa las restricciones vehiculares o de movimientos de acuerdo con los lineamientos de los entes reguladores.","Revisa las restricciones vehiculares o de movimientos de acuerdo con los lineamientos de los entes reguladores.",null,null,null,"",null,null,null,null,null,null,null,null,null,null,null,null,null,null,null,null,null,null,null,null,null,null,null,null,null,null,null,null,null,null,null,null,null,null,null,null,null,null,"N",3]
[null,41,"Limpia y desinfecta diariamente interna y externamente el tranporte, utilizando el EPP.","Limpia y desinfecta diariamente interna y externamente el tranporte, utilizando el EPP.","Limpia y desinfecta diariamente interna y externamente el tranporte, utilizando el EPP.","Limpia y desinfecta diariamente interna y externamente el tranporte, utilizando el EPP.","Limpia y desinfecta diariamente interna y externamente el tranporte, utilizando el EPP.","Limpia y desinfecta diariamente interna y externamente el tranporte, utilizando el EPP.","Limpia y desinfecta diariamente interna y externamente el tranporte, utilizando el EPP.","Limpia y desinfecta diariamente interna y externamente el tranporte, utilizando el EPP.","Limpia y desinfecta diariamente interna y externamente el tranporte, utilizando el EPP.",null,null,null,{"$f":"IF(OR(BB64=1),\"OK\",IF(BC64=2,\"Deficiente\",\"\"))","v":""},null,null,null,null,null,null,null,null,null,null,null,null,null,null,null,null,null,null,null,null,null,null,null,null,null,null,null,null,null,null,null,null,null,null,null,null,null,null,"N",3]
[null,42,"Cuenta con artículos de higienización en el transporte.","Cuenta con artículos de higienización en el transporte.","Cuenta con artículos de higienización en el transporte.","Cuenta con artículos de higienización en el transporte.","Cuenta con artículos de higienización en el transporte.","Cuenta con artículos de higienización en el transporte.","Cuenta con artículos de higienización en el transporte.","Cuenta con artículos de higienización en el transporte.","Cuenta con artículos de higienización en el transporte.",null,null,null,"",null,null,null,null,null,null,null,null,null,null,null,null,null,null,null,null,null,null,null,null,null,null,null,null,null,null,null,null,null,null,null,null,null,null,null,null,null,null,"N",3]
[null,43,"Favorece la ventilación natural en el vehículo. En caso de contar con aire acondicionado realiza el mantenimiento de los filtros . Evita la  recirculación del aire.","Favorece la ventilación natural en el vehículo. En caso de contar con aire acondicionado realiza el mantenimiento de los filtros . Evita la  recirculación del aire.","Favorece la ventilación natural en el vehículo. En caso de contar con aire acondicionado realiza el mantenimiento de los filtros . Evita la  recirculación del aire.","Favorece la ventilación natural en el vehículo. En caso de contar con aire acondicionado realiza el mantenimiento de los filtros . Evita la  recirculación del aire.","Favorece la ventilación natural en el vehículo. En caso de contar con aire acondicionado realiza el mantenimiento de los filtros . Evita la  recirculación del aire.","Favorece la ventilación natural en el vehículo. En caso de contar con aire acondicionado realiza el mantenimiento de los filtros . Evita la  recirculación del aire.","Favorece la ventilación natural en el vehículo. En caso de contar con aire acondicionado realiza el mantenimiento de los filtros . Evita la  recirculación del aire.","Favorece la ventilación natural en el vehículo. En caso de contar con aire acondicionado realiza el mantenimiento de los filtros . Evita la  recirculación del aire.","Favorece la ventilación natural en el vehículo. En caso de contar con aire acondicionado realiza el mantenimiento de los filtros . Evita la  recirculación del aire.",null,null,null,{"$f":"IF(OR(BB66=1),\"OK\",IF(BC66=2,\"Deficiente\",\"\"))","v":""},null,null,null,null,null,null,null,null,null,null,null,null,null,null,null,null,null,null,null,null,null,null,null,null,null,null,null,null,null,null,null,null,null,null,null,null,null,null,"N",3]
[null,44,"Desinfecta el celular y/o lapicero","Desinfecta el celular y/o lapicero","Desinfecta el celular y/o lapicero","Desinfecta el celular y/o lapicero","Desinfecta el celular y/o lapicero","Desinfecta el celular y/o lapicero","Desinfecta el celular y/o lapicero","Desinfecta el celular y/o lapicero","Desinfecta el celular y/o lapicero",null,null,null,"",null,null,null,null,null,null,null,null,null,null,null,null,null,null,null,null,null,null,null,null,null,null,null,null,null,null,null,null,null,null,null,null,null,null,null,null,null,null,"N",3]
[null,45,"Cuenta con el equipo de protección personal para brindarle a las personas turistas.","Cuenta con el equipo de protección personal para brindarle a las personas turistas.","Cuenta con el equipo de protección personal para brindarle a las personas turistas.","Cuenta con el equipo de protección personal para brindarle a las personas turistas.","Cuenta con el equipo de protección personal para brindarle a las personas turistas.","Cuenta con el equipo de protección personal para brindarle a las personas turistas.","Cuenta con el equipo de protección personal para brindarle a las personas turistas.","Cuenta con el equipo de protección personal para brindarle a las personas turistas.","Cuenta con el equipo de protección personal para brindarle a las personas turistas.",null,null,null,{"$f":"IF(OR(BB68=1),\"OK\",IF(BC68=2,\"Deficiente\",\"\"))","v":""},null,null,null,null,null,null,null,null,null,null,null,null,null,null,null,null,null,null,null,null,null,null,null,null,null,null,null,null,null,null,null,null,null,null,null,null,null,null,"N",3]
[null,46,"Informa a la persona turista como se minimiza el riesgo de contagio.","Informa a la persona turista como se minimiza el riesgo de contagio.","Informa a la persona turista como se minimiza el riesgo de contagio.","Informa a la persona turista como se minimiza el riesgo de contagio.","Informa a la persona turista como se minimiza el riesgo de contagio.","Informa a la persona turista como se minimiza el riesgo de contagio.","Informa a la persona turista como se minimiza el riesgo de contagio.","Informa a la persona turista como se minimiza el riesgo de contagio.","Informa a la persona turista como se minimiza el riesgo de contagio.",null,null,null,"",null,null,null,null,null,null,null,null,null,null,null,null,null,null,null,null,null,null,null,null,null,null,null,null,null,null,null,null,null,null,null,null,null,null,null,null,null,null,"N",3]
[null,47,"En cuanto al servicio de estacionamiento, se debe evitar la manipulación de vehículos de clientes por parte del personal.","En cuanto al servicio de estacionamiento, se debe evitar la manipulación de vehículos de clientes por parte del personal.","En cuanto al servicio de estacionamiento, se debe evitar la manipulación de vehículos de clientes por parte del personal.","En cuanto al servicio de estacionamiento, se debe evitar la manipulación de vehículos de clientes por parte del personal.","En cuanto al servicio de estacionamiento, se debe evitar la manipulación de vehículos de clientes por parte del personal.","En cuanto al servicio de estacionamiento, se debe evitar la manipulación de vehículos de clientes por parte del personal.","En cuanto al servicio de estacionamiento, se debe evitar la manipulación de vehículos de clientes por parte del personal.","En cuanto al servicio de estacionamiento, se debe evitar la manipulación de vehículos de clientes por parte del personal.","En cuanto al servicio de estacionamiento, se debe evitar la manipulación de vehículos de clientes por parte del personal.",null,null,null,{"$f":"IF(OR(BB70=1),\"OK\",IF(BC70=2,\"Deficiente\",\"\"))","v":""},null,null,null,null,null,null,null,null,null,null,null,null,null,null,null,null,null,null,null,null,null,null,null,null,null,null,null,null,null,null,null,null,null,null,null,null,null,null,"N",3]
[null,48,"Cumple con lineamientos específicos establecidos con Consejo de Transporte Público.","Cumple con lineamientos específicos establecidos con Consejo de Transporte Público.","Cumple con lineamientos específicos establecidos con Consejo de Transporte Público.","Cumple con lineamientos específicos establecidos con Consejo de Transporte Público.","Cumple con lineamientos específicos establecidos con Consejo de Transporte Público.","Cumple con lineamientos específicos establecidos con Consejo de Transporte Público.","Cumple con lineamientos específicos establecidos con Consejo de Transporte Público.","Cumple con lineamientos específicos establecidos con Consejo de Transporte Público.","Cumple con lineamientos específicos establecidos con Consejo de Transporte Público.",null,null,null,"",null,null,null,null,null,null,null,null,null,null,null,null,null,null,null,null,null,null,null,null,null,null,null,null,null,null,null,null,null,null,null,null,null,null,null,null,null,null,"N",3]
[null,"IV"," HIGIENE, LIMPIEZA Y DESINFECCIÓN  ",null,null,null,null,null,null,null,null,null,null,null,null,null,null,null,null,null,null,null,null,null,null,null,null,null,null,null,null,null,null,null,null,null,null,null,null,null,null,null,null,null,null,null,null,null,null,null,null,null,null,"  "]
[null,"A","MEDIDAS DE HIGIENE, LIMPIEZA Y DESINFECCIÓN EN: RECEPCIÓN, HABITACIONES, ÁREAS COMUNES, PÚBLICAS, LAVANDERÍA",null,null,null,null,null,null,null,null,null,null,null,null,null,null,null,null,null,null,null,null,null,null,null,null,null,null,null,null,null,null,null,null,null,null,null,null,null,null,null,null,null,null,null,null,null,null,null,null,null,null," "]
[null,49,"Realiza una inspección general del establecimiento en sus diferentes áreas.","Realiza una inspección general del establecimiento en sus diferentes áreas.","Realiza una inspección general del establecimiento en sus diferentes áreas.","Realiza una inspección general del establecimiento en sus diferentes áreas.","Realiza una inspección general del establecimiento en sus diferentes áreas.","Realiza una inspección general del establecimiento en sus diferentes áreas.","Realiza una inspección general del establecimiento en sus diferentes áreas.","Realiza una inspección general del establecimiento en sus diferentes áreas.","Realiza una inspección general del establecimiento en sus diferentes áreas.",null,null,null,{"$f":"IF(OR(BB74=1),\"OK\",IF(BC74=2,\"Deficiente\",\"\"))","v":""},null,null,null,null,null,null,null,null,null,null,null,null,null,null,null,null,null,null,null,null,null,null,null,null,null,null,null,null,null,null,null,null,null,null,null,null,null,null,"N",3]
[null,50,"Procedimiento de limpieza y desinfección áreas, superficies y equipos.","Procedimiento de limpieza y desinfección áreas, superficies y equipos.","Procedimiento de limpieza y desinfección áreas, superficies y equipos.","Procedimiento de limpieza y desinfección áreas, superficies y equipos.","Procedimiento de limpieza y desinfección áreas, superficies y equipos.","Procedimiento de limpieza y desinfección áreas, superficies y equipos.","Procedimiento de limpieza y desinfección áreas, superficies y equipos.","Procedimiento de limpieza y desinfección áreas, superficies y equipos.","Procedimiento de limpieza y desinfección áreas, superficies y equipos.",null,null,null,"",null,null,null,null,null,null,null,null,null,null,null,null,null,null,null,null,null,null,null,null,null,null,null,null,null,null,null,null,null,null,null,null,null,null,null,null,null,null,"N",3]
[null,51,"Procedimiento de manejo de residuos áreas, superficies y equipos.","Procedimiento de manejo de residuos áreas, superficies y equipos.","Procedimiento de manejo de residuos áreas, superficies y equipos.","Procedimiento de manejo de residuos áreas, superficies y equipos.","Procedimiento de manejo de residuos áreas, superficies y equipos.","Procedimiento de manejo de residuos áreas, superficies y equipos.","Procedimiento de manejo de residuos áreas, superficies y equipos.","Procedimiento de manejo de residuos áreas, superficies y equipos.","Procedimiento de manejo de residuos áreas, superficies y equipos.",null,null,null,"",null,null,null,null,null,null,null,null,null,null,null,null,null,null,null,null,null,null,null,null,null,null,null,null,null,null,null,null,null,null,null,null,null,null,null,null,null,null,"N",3]
[null,52,"Procedimiento de limpieza y desinfección de superficies de mayor contacto.","Procedimiento de limpieza y desinfección de superficies de mayor contacto.","Procedimiento de limpieza y desinfección de superficies de mayor contacto.","Procedimiento de limpieza y desinfección de superficies de mayor contacto.","Procedimiento de limpieza y desinfección de superficies de mayor contacto.","Procedimiento de limpieza y desinfección de superficies de mayor contacto.","Procedimiento de limpieza y desinfección de superficies de mayor contacto.","Procedimiento de limpieza y desinfección de superficies de mayor contacto.","Procedimiento de limpieza y desinfección de superficies de mayor contacto.",null,null,null,"",null,null,null,null,null,null,null,null,null,null,null,null,null,null,null,null,null,null,null,null,null,null,null,null,null,null,null,null,null,null,null,null,null,null,null,null,null,null,"N",3]
[null,53,"Se prohibe  que el personal se toque la cara durante el proceso de limpieza y desinfección.","Se prohibe  que el personal se toque la cara durante el proceso de limpieza y desinfección.","Se prohibe  que el personal se toque la cara durante el proceso de limpieza y desinfección.","Se prohibe  que el personal se toque la cara durante el proceso de limpieza y desinfección.","Se prohibe  que el personal se toque la cara durante el proceso de limpieza y desinfección.","Se prohibe  que el personal se toque la cara durante el proceso de limpieza y desinfección.","Se prohibe  que el personal se toque la cara durante el proceso de limpieza y desinfección.","Se prohibe  que el personal se toque la cara durante el proceso de limpieza y desinfección.","Se prohibe  que el personal se toque la cara durante el proceso de limpieza y desinfección.",null,null,null,"",null,null,null,null,null,null,null,null,null,null,null,null,null,null,null,null,null,null,null,null,null,null,null,null,null,null,null,null,null,null,null,null,null,null,null,null,null,null,"N",3]
[null,54,"Utilizan guantes para las labores de limpieza, y se lavan las manos inmediatamente después de quitárselos.","Utilizan guantes para las labores de limpieza, y se lavan las manos inmediatamente después de quitárselos.","Utilizan guantes para las labores de limpieza, y se lavan las manos inmediatamente después de quitárselos.","Utilizan guantes para las labores de limpieza, y se lavan las manos inmediatamente después de quitárselos.","Utilizan guantes para las labores de limpieza, y se lavan las manos inmediatamente después de quitárselos.","Utilizan guantes para las labores de limpieza, y se lavan las manos inmediatamente después de quitárselos.","Utilizan guantes para las labores de limpieza, y se lavan las manos inmediatamente después de quitárselos.","Utilizan guantes para las labores de limpieza, y se lavan las manos inmediatamente después de quitárselos.","Utilizan guantes para las labores de limpieza, y se lavan las manos inmediatamente después de quitárselos.",null,null,null,"",null,null,null,null,null,null,null,null,null,null,null,null,null,null,null,null,null,null,null,null,null,null,null,null,null,null,null,null,null,null,null,null,null,null,null,null,null,null,"N",3]
[null,55,"Registro de limpieza y desinfección de áreas, superficies, equipos, manejo de residuos.","Registro de limpieza y desinfección de áreas, superficies, equipos, manejo de residuos.","Registro de limpieza y desinfección de áreas, superficies, equipos, manejo de residuos.","Registro de limpieza y desinfección de áreas, superficies, equipos, manejo de residuos.","Registro de limpieza y desinfección de áreas, superficies, equipos, manejo de residuos.","Registro de limpieza y desinfección de áreas, superficies, equipos, manejo de residuos.","Registro de limpieza y desinfección de áreas, superficies, equipos, manejo de residuos.","Registro de limpieza y desinfección de áreas, superficies, equipos, manejo de residuos.","Registro de limpieza y desinfección de áreas, superficies, equipos, manejo de residuos.",null,null,null,"",null,null,null,null,null,null,null,null,null,null,null,null,null,null,null,null,null,null,null,null,null,null,null,null,null,null,null,null,null,null,null,null,null,null,null,null,null,null,"N",3]
[null,56,"Plan de Limpieza y Desinfección de áreas y superficies.","Plan de Limpieza y Desinfección de áreas y superficies.","Plan de Limpieza y Desinfección de áreas y superficies.","Plan de Limpieza y Desinfección de áreas y superficies.","Plan de Limpieza y Desinfección de áreas y superficies.","Plan de Limpieza y Desinfección de áreas y superficies.","Plan de Limpieza y Desinfección de áreas y superficies.","Plan de Limpieza y Desinfección de áreas y superficies.","Plan de Limpieza y Desinfección de áreas y superficies.",null,null,null,"",null,null,null,null,null,null,null,null,null,null,null,null,null,null,null,null,null,null,null,null,null,null,null,null,null,null,null,null,null,null,null,null,null,null,null,null,null,null,"N",3]
[null,57,"Procedimiento para la limpieza y desinfección de equipos para la higienización (carritos para limpieza y desinfección, baldes, escobas, entre otros).","Procedimiento para la limpieza y desinfección de equipos para la higienización (carritos para limpieza y desinfección, baldes, escobas, entre otros).","Procedimiento para la limpieza y desinfección de equipos para la higienización (carritos para limpieza y desinfección, baldes, escobas, entre otros).","Procedimiento para la limpieza y desinfección de equipos para la higienización (carritos para limpieza y desinfección, baldes, escobas, entre otros).","Procedimiento para la limpieza y desinfección de equipos para la higienización (carritos para limpieza y desinfección, baldes, escobas, entre otros).","Procedimiento para la limpieza y desinfección de equipos para la higienización (carritos para limpieza y desinfección, baldes, escobas, entre otros).","Procedimiento para la limpieza y desinfección de equipos para la higienización (carritos para limpieza y desinfección, baldes, escobas, entre otros).","Procedimiento para la limpieza y desinfección de equipos para la higienización (carritos para limpieza y desinfección, baldes, escobas, entre otros).","Procedimiento para la limpieza y desinfección de equipos para la higienización (carritos para limpieza y desinfección, baldes, escobas, entre otros).",null,null,null,"",null,null,null,null,null,null,null,null,null,null,null,null,null,null,null,null,null,null,null,null,null,null,null,null,null,null,null,null,null,null,null,null,null,null,null,null,null,null,"N",3]
[null,"B","HABITACIONES",null,null,null,null,null,null,null,null,null,null,null,null,null,null,null,null,null,null,null,null,null,null,null,null,null,null,null,null,null,null,null,null,null,null,null,null,null,null,null,null,null,null,null,null,null,null,null,null,null,null," "]
[null,58,"Restrinja la visita a las habitaciones entre huéspedes.","Restrinja la visita a las habitaciones entre huéspedes.","Restrinja la visita a las habitaciones entre huéspedes.","Restrinja la visita a las habitaciones entre huéspedes.","Restrinja la visita a las habitaciones entre huéspedes.","Restrinja la visita a las habitaciones entre huéspedes.","Restrinja la visita a las habitaciones entre huéspedes.","Restrinja la visita a las habitaciones entre huéspedes.","Restrinja la visita a las habitaciones entre huéspedes.",null,null,null,{"$f":"IF(OR(BB84=1),\"OK\",IF(BC84=2,\"Deficiente\",\"\"))","v":""},null,null,null,null,null,null,null,null,null,null,null,null,null,null,null,null,null,null,null,null,null,null,null,null,null,null,null,null,null,null,null,null,null,null,null,null,null,null,"N",3]
[null,59,"Dejar a voluntad del huésped, la decisión de realizar o no la limpieza diaria de su habitación durante la estadía.","Dejar a voluntad del huésped, la decisión de realizar o no la limpieza diaria de su habitación durante la estadía.","Dejar a voluntad del huésped, la decisión de realizar o no la limpieza diaria de su habitación durante la estadía.","Dejar a voluntad del huésped, la decisión de realizar o no la limpieza diaria de su habitación durante la estadía.","Dejar a voluntad del huésped, la decisión de realizar o no la limpieza diaria de su habitación durante la estadía.","Dejar a voluntad del huésped, la decisión de realizar o no la limpieza diaria de su habitación durante la estadía.","Dejar a voluntad del huésped, la decisión de realizar o no la limpieza diaria de su habitación durante la estadía.","Dejar a voluntad del huésped, la decisión de realizar o no la limpieza diaria de su habitación durante la estadía.","Dejar a voluntad del huésped, la decisión de realizar o no la limpieza diaria de su habitación durante la estadía.",null,null,null,"",null,null,null,null,null,null,null,null,null,null,null,null,null,null,null,null,null,null,null,null,null,null,null,null,null,null,null,null,null,null,null,null,null,null,null,null,null,null,"N",3]
[null,"C","SISTEMA DE AIRE ACONDICIONADO",null,null,null,null,null,null,null,null,null,null,null,"",null,null,null,null,null,null,null,null,null,null,null,null,null,null,null,null,null,null,null,null,null,null,null,null,null,null,null,null,null,null,null,null,null,null,null,null,null,null," "]
[null,60,"Realiza y registra mantenimiento adecuado al sistema de aire acondicionado (aumentando la frecuencia de limpieza de los filtros).",null,null,null,null,null,null,null,null,null,null,null,"",null,null,null,null,null,null,null,null,null,null,null,null,null,null,null,null,null,null,null,null,null,null,null,null,null,null,null,null,null,null,null,null,null,null,null,null,null,null,"N",3]
[null,"D","SERVICIOS SANITARIOS, ESTACIONES DE LAVADO Y DESINFECCIÓN DE MANOS",null,null,null,null,null,null,null,null,null,null,null,"",null,null,null,null,null,null,null,null,null,null,null,null,null,null,null,null,null,null,null,null,null,null,null,null,null,null,null,null,null,null,null,null,null,null,null,null,null,null," "]
[null,61,"Todos las personas colaboradoras lavan sus manos: \n- A la salida y llegada de su casa       -\tAl ingreso de las áreas de preparación de los alimentos.\n-\tDespués de ir al baño.                      -\tDespués de tocarse la cara.           -\tDespués de toser o estornudar.\n-\tDespués de manipular dinero.          -\tDespués de cargar cajas u objetos sucios.                                                                                                                                                -\tDespués de tocar pasamanos o manijas de puertas.    -\tDespués de recoger o manejar residuos.                                  -\tEntre actividades de producción para evitar la contaminación cruzada.\n-\tAntes y después de usar guantes y mascarilla.        -\tDespués de utilizar productos químicos o de limpieza.\n-\tAntes y después de la recepción de producto.          -\tDespués de ingerir alimentos o bebidas.","Todos las personas colaboradoras lavan sus manos:\n-\tA la salida y llegada de su casa.\n-\tAl ingreso de las áreas de preparación de los alimentos.\n-\tDespués de ir al baño.\n-\tDespués de tocarse la cara.\n-\tDespués de toser o estornudar.\n-\tDespués de manipular dinero.\n-\tDespués de cargar cajas u objetos sucios.\n-\tDespués de tocar pasamanos o manijas de puertas.\n-\tDespués de recoger o manejar residuos.\n-\tEntre actividades de producción para evitar la contaminación cruzada.\n-\tAntes y después de usar guantes y mascarilla.\n-\tDespués de utilizar productos químicos o de limpieza.\n-\tAntes y después de la recepción de producto.\n-\tDespués de ingerir alimentos o bebidas.","Todos las personas colaboradoras lavan sus manos:\n-\tA la salida y llegada de su casa.\n-\tAl ingreso de las áreas de preparación de los alimentos.\n-\tDespués de ir al baño.\n-\tDespués de tocarse la cara.\n-\tDespués de toser o estornudar.\n-\tDespués de manipular dinero.\n-\tDespués de cargar cajas u objetos sucios.\n-\tDespués de tocar pasamanos o manijas de puertas.\n-\tDespués de recoger o manejar residuos.\n-\tEntre actividades de producción para evitar la contaminación cruzada.\n-\tAntes y después de usar guantes y mascarilla.\n-\tDespués de utilizar productos químicos o de limpieza.\n-\tAntes y después de la recepción de producto.\n-\tDespués de ingerir alimentos o bebidas.","Todos las personas colaboradoras lavan sus manos:\n-\tA la salida y llegada de su casa.\n-\tAl ingreso de las áreas de preparación de los alimentos.\n-\tDespués de ir al baño.\n-\tDespués de tocarse la cara.\n-\tDespués de toser o estornudar.\n-\tDespués de manipular dinero.\n-\tDespués de cargar cajas u objetos sucios.\n-\tDespués de tocar pasamanos o manijas de puertas.\n-\tDespués de recoger o manejar residuos.\n-\tEntre actividades de producción para evitar la contaminación cruzada.\n-\tAntes y después de usar guantes y mascarilla.\n-\tDespués de utilizar productos químicos o de limpieza.\n-\tAntes y después de la recepción de producto.\n-\tDespués de ingerir alimentos o bebidas.","Todos las personas colaboradoras lavan sus manos:\n-\tA la salida y llegada de su casa.\n-\tAl ingreso de las áreas de preparación de los alimentos.\n-\tDespués de ir al baño.\n-\tDespués de tocarse la cara.\n-\tDespués de toser o estornudar.\n-\tDespués de manipular dinero.\n-\tDespués de cargar cajas u objetos sucios.\n-\tDespués de tocar pasamanos o manijas de puertas.\n-\tDespués de recoger o manejar residuos.\n-\tEntre actividades de producción para evitar la contaminación cruzada.\n-\tAntes y después de usar guantes y mascarilla.\n-\tDespués de utilizar productos químicos o de limpieza.\n-\tAntes y después de la recepción de producto.\n-\tDespués de ingerir alimentos o bebidas.","Todos las personas colaboradoras lavan sus manos:\n-\tA la salida y llegada de su casa.\n-\tAl ingreso de las áreas de preparación de los alimentos.\n-\tDespués de ir al baño.\n-\tDespués de tocarse la cara.\n-\tDespués de toser o estornudar.\n-\tDespués de manipular dinero.\n-\tDespués de cargar cajas u objetos sucios.\n-\tDespués de tocar pasamanos o manijas de puertas.\n-\tDespués de recoger o manejar residuos.\n-\tEntre actividades de producción para evitar la contaminación cruzada.\n-\tAntes y después de usar guantes y mascarilla.\n-\tDespués de utilizar productos químicos o de limpieza.\n-\tAntes y después de la recepción de producto.\n-\tDespués de ingerir alimentos o bebidas.","Todos las personas colaboradoras lavan sus manos:\n-\tA la salida y llegada de su casa.\n-\tAl ingreso de las áreas de preparación de los alimentos.\n-\tDespués de ir al baño.\n-\tDespués de tocarse la cara.\n-\tDespués de toser o estornudar.\n-\tDespués de manipular dinero.\n-\tDespués de cargar cajas u objetos sucios.\n-\tDespués de tocar pasamanos o manijas de puertas.\n-\tDespués de recoger o manejar residuos.\n-\tEntre actividades de producción para evitar la contaminación cruzada.\n-\tAntes y después de usar guantes y mascarilla.\n-\tDespués de utilizar productos químicos o de limpieza.\n-\tAntes y después de la recepción de producto.\n-\tDespués de ingerir alimentos o bebidas.","Todos las personas colaboradoras lavan sus manos:\n-\tA la salida y llegada de su casa.\n-\tAl ingreso de las áreas de preparación de los alimentos.\n-\tDespués de ir al baño.\n-\tDespués de tocarse la cara.\n-\tDespués de toser o estornudar.\n-\tDespués de manipular dinero.\n-\tDespués de cargar cajas u objetos sucios.\n-\tDespués de tocar pasamanos o manijas de puertas.\n-\tDespués de recoger o manejar residuos.\n-\tEntre actividades de producción para evitar la contaminación cruzada.\n-\tAntes y después de usar guantes y mascarilla.\n-\tDespués de utilizar productos químicos o de limpieza.\n-\tAntes y después de la recepción de producto.\n-\tDespués de ingerir alimentos o bebidas.","Todos las personas colaboradoras lavan sus manos:\n-\tA la salida y llegada de su casa.\n-\tAl ingreso de las áreas de preparación de los alimentos.\n-\tDespués de ir al baño.\n-\tDespués de tocarse la cara.\n-\tDespués de toser o estornudar.\n-\tDespués de manipular dinero.\n-\tDespués de cargar cajas u objetos sucios.\n-\tDespués de tocar pasamanos o manijas de puertas.\n-\tDespués de recoger o manejar residuos.\n-\tEntre actividades de producción para evitar la contaminación cruzada.\n-\tAntes y después de usar guantes y mascarilla.\n-\tDespués de utilizar productos químicos o de limpieza.\n-\tAntes y después de la recepción de producto.\n-\tDespués de ingerir alimentos o bebidas.",null,null,null,{"$f":"IF(OR(BB89=1),\"OK\",IF(BC89=2,\"Deficiente\",\"\"))","v":""},null,null,null,null,null,null,null,null,null,null,null,null,null,null,null,null,null,null,null,null,null,null,null,null,null,null,null,null,null,null,null,null,null,null,null,null,null,null,"N",3]
[null,62,"Revisa frecuentemente que los dispensadores de jabón y desinfectante se mantengan en buen estado de funcionamiento y abastecidos.\n  *Idealmente que sean dispensadores que no requieran contacto.","Revisa frecuentemente que los dispensadores de jabón y desinfectante se mantengan en buen estado de funcionamiento y abastecidos.\n  *Idealmente que sean dispensadores que no requieran contacto.","Revisa frecuentemente que los dispensadores de jabón y desinfectante se mantengan en buen estado de funcionamiento y abastecidos.\n  *Idealmente que sean dispensadores que no requieran contacto.","Revisa frecuentemente que los dispensadores de jabón y desinfectante se mantengan en buen estado de funcionamiento y abastecidos.\n  *Idealmente que sean dispensadores que no requieran contacto.","Revisa frecuentemente que los dispensadores de jabón y desinfectante se mantengan en buen estado de funcionamiento y abastecidos.\n  *Idealmente que sean dispensadores que no requieran contacto.","Revisa frecuentemente que los dispensadores de jabón y desinfectante se mantengan en buen estado de funcionamiento y abastecidos.\n  *Idealmente que sean dispensadores que no requieran contacto.","Revisa frecuentemente que los dispensadores de jabón y desinfectante se mantengan en buen estado de funcionamiento y abastecidos.\n  *Idealmente que sean dispensadores que no requieran contacto.","Revisa frecuentemente que los dispensadores de jabón y desinfectante se mantengan en buen estado de funcionamiento y abastecidos.\n  *Idealmente que sean dispensadores que no requieran contacto.","Revisa frecuentemente que los dispensadores de jabón y desinfectante se mantengan en buen estado de funcionamiento y abastecidos.\n  *Idealmente que sean dispensadores que no requieran contacto.",null,null,null,"",null,null,null,null,null,null,null,null,null,null,null,null,null,null,null,null,null,null,null,null,null,null,null,null,null,null,null,null,null,null,null,null,null,null,null,null,null,null,{"$f":"IF(OR(BC90=1),1,IF(BC90=2,0,\"N\"))","v":"N"},3]
[null,63,"El lava manos cuenta con mecanismo para accionar en forma automática (pedal, sensor).","El lava manos cuenta con mecanismo para accionar en forma automática (pedal, sensor).","El lava manos cuenta con mecanismo para accionar en forma automática (pedal, sensor).","El lava manos cuenta con mecanismo para accionar en forma automática (pedal, sensor).","El lava manos cuenta con mecanismo para accionar en forma automática (pedal, sensor).","El lava manos cuenta con mecanismo para accionar en forma automática (pedal, sensor).","El lava manos cuenta con mecanismo para accionar en forma automática (pedal, sensor).","El lava manos cuenta con mecanismo para accionar en forma automática (pedal, sensor).","El lava manos cuenta con mecanismo para accionar en forma automática (pedal, sensor).",null,null,null,"",null,null,null,null,null,null,null,null,null,null,null,null,null,null,null,null,null,null,null,null,null,null,null,null,null,null,null,null,null,null,null,null,null,null,null,null,null,null,"N",3]
[null,64,"La rotación del personal permite que la persona asignada al área de cajas se lave las manos frecuentemente. ","La rotación del personal permite que la persona asignada al área de cajas se lave las manos frecuentemente. ","La rotación del personal permite que la persona asignada al área de cajas se lave las manos frecuentemente. ","La rotación del personal permite que la persona asignada al área de cajas se lave las manos frecuentemente. ","La rotación del personal permite que la persona asignada al área de cajas se lave las manos frecuentemente. ","La rotación del personal permite que la persona asignada al área de cajas se lave las manos frecuentemente. ","La rotación del personal permite que la persona asignada al área de cajas se lave las manos frecuentemente. ","La rotación del personal permite que la persona asignada al área de cajas se lave las manos frecuentemente. ","La rotación del personal permite que la persona asignada al área de cajas se lave las manos frecuentemente. ",null,null,null,"",null,null,null,null,null,null,null,null,null,null,null,null,null,null,null,null,null,null,null,null,null,null,null,null,null,null,null,null,null,null,null,null,null,null,null,null,null,null,"N",3]
[null,65,"Cuentan los baños de accesos público con todos los implementos requeridos para su funcionamiento (papel higiénico, jabón antibacterial, toallas desechables para secado de manos, alcohol en gel  y basurero con tapa (accionada con pedal)), debidamente desinfectados y se lleva un control escrito.","Cuentan los baños de accesos público con todos los implementos requeridos para su funcionamiento (papel higiénico, jabón antibacterial, toallas desechables para secado de manos, alcohol en gel  y basurero con tapa (accionada con pedal)), debidamente desinfectados y se lleva un control escrito.","Cuentan los baños de accesos público con todos los implementos requeridos para su funcionamiento (papel higiénico, jabón antibacterial, toallas desechables para secado de manos, alcohol en gel  y basurero con tapa (accionada con pedal)), debidamente desinfectados y se lleva un control escrito.","Cuentan los baños de accesos público con todos los implementos requeridos para su funcionamiento (papel higiénico, jabón antibacterial, toallas desechables para secado de manos, alcohol en gel  y basurero con tapa (accionada con pedal)), debidamente desinfectados y se lleva un control escrito.","Cuentan los baños de accesos público con todos los implementos requeridos para su funcionamiento (papel higiénico, jabón antibacterial, toallas desechables para secado de manos, alcohol en gel  y basurero con tapa (accionada con pedal)), debidamente desinfectados y se lleva un control escrito.","Cuentan los baños de accesos público con todos los implementos requeridos para su funcionamiento (papel higiénico, jabón antibacterial, toallas desechables para secado de manos, alcohol en gel  y basurero con tapa (accionada con pedal)), debidamente desinfectados y se lleva un control escrito.","Cuentan los baños de accesos público con todos los implementos requeridos para su funcionamiento (papel higiénico, jabón antibacterial, toallas desechables para secado de manos, alcohol en gel  y basurero con tapa (accionada con pedal)), debidamente desinfectados y se lleva un control escrito.","Cuentan los baños de accesos público con todos los implementos requeridos para su funcionamiento (papel higiénico, jabón antibacterial, toallas desechables para secado de manos, alcohol en gel  y basurero con tapa (accionada con pedal)), debidamente desinfectados y se lleva un control escrito.","Cuentan los baños de accesos público con todos los implementos requeridos para su funcionamiento (papel higiénico, jabón antibacterial, toallas desechables para secado de manos, alcohol en gel  y basurero con tapa (accionada con pedal)), debidamente desinfectados y se lleva un control escrito.",null,null,null,{"$f":"IF(OR(BB93=1),\"OK\",IF(BC93=2,\"Deficiente\",\"\"))","v":""},null,null,null,null,null,null,null,null,null,null,null,null,null,null,null,null,null,null,null,null,null,null,null,null,null,null,null,null,null,null,null,null,null,null,null,null,null,null,"N",3]
[null,"E","CONSULTURIO MEDICO",null,null,null,null,null,null,null,null,null,null,null,null,null,null,null,null,null,null,null,null,null,null,null,null,null,null,null,null,null,null,null,null,null,null,null,null,null,null,null,null,null,null,null,null,null,null,null,null,null,null," "]
[null,66,"Mantiene actualizado los lineamientos sobre atención, según las autoridades sanitarias","Mantiene actualizado los lineamientos sobre atención, según las autoridades sanitarias","Mantiene actualizado los lineamientos sobre atención, según las autoridades sanitarias","Mantiene actualizado los lineamientos sobre atención, según las autoridades sanitarias","Mantiene actualizado los lineamientos sobre atención, según las autoridades sanitarias","Mantiene actualizado los lineamientos sobre atención, según las autoridades sanitarias","Mantiene actualizado los lineamientos sobre atención, según las autoridades sanitarias","Mantiene actualizado los lineamientos sobre atención, según las autoridades sanitarias","Mantiene actualizado los lineamientos sobre atención, según las autoridades sanitarias",null,null,null,{"$f":"IF(OR(BB95=1),\"OK\",IF(BC95=2,\"Deficiente\",\"\"))","v":""},null,null,null,null,null,null,null,null,null,null,null,null,null,null,null,null,null,null,null,null,null,null,null,null,null,null,null,null,null,null,null,null,null,null,null,null,null,null,"N",3]
[null,67,"Cuenta con protocolo de manejo de información en caso de personas que presenten síntomas","Cuenta con protocolo de manejo de información en caso de personas que presenten síntomas","Cuenta con protocolo de manejo de información en caso de personas que presenten síntomas","Cuenta con protocolo de manejo de información en caso de personas que presenten síntomas","Cuenta con protocolo de manejo de información en caso de personas que presenten síntomas","Cuenta con protocolo de manejo de información en caso de personas que presenten síntomas","Cuenta con protocolo de manejo de información en caso de personas que presenten síntomas","Cuenta con protocolo de manejo de información en caso de personas que presenten síntomas","Cuenta con protocolo de manejo de información en caso de personas que presenten síntomas",null,null,null,"",null,null,null,null,null,null,null,null,null,null,null,null,null,null,null,null,null,null,null,null,null,null,null,null,null,null,null,null,null,null,null,null,null,null,null,null,null,null,"N",3]
[null,68,"Procedimiento de limpieza y desinfección del consultorio","Procedimiento de limpieza y desinfección del consultorio","Procedimiento de limpieza y desinfección del consultorio","Procedimiento de limpieza y desinfección del consultorio","Procedimiento de limpieza y desinfección del consultorio","Procedimiento de limpieza y desinfección del consultorio","Procedimiento de limpieza y desinfección del consultorio","Procedimiento de limpieza y desinfección del consultorio","Procedimiento de limpieza y desinfección del consultorio",null,null,null,"",null,null,null,null,null,null,null,null,null,null,null,null,null,null,null,null,null,null,null,null,null,null,null,null,null,null,null,null,null,null,null,null,null,null,null,null,null,null,"N",3]
[null,"V","ACTUACIÓN ANTE CASOS CONFIRMADOS O SOSPECHOSOS DE LAS PERSONAS",null,null,null,null,null,null,null,null,null,null,null,"",null,null,null,null,null,null,null,null,null,null,null,null,null,null,null,null,null,null,null,null,null,null,null,null,null,null,null,null,null,null,null,null,null,null,null,null,null,null," "]
[null,"A","PROTOCOLO ANTE CASO CONFIRMADO O SOSPECHOSO A COVID-19",null,null,null,null,null,null,null,null,null,null,null,"",null,null,null,null,null,null,null,null,null,null,null,null,null,null,null,null,null,null,null,null,null,null,null,null,null,null,null,null,null,null,null,null,null,null,null,null,null,null," "]
[null,69,"Se cuenta con un protocolo ante casos confirmados a COVID-19:\n*Comunicación verbal y por escrito (idiomas comunes de atención) a turistas en caso de que se presente algún síntoma respiratorio o contacto con casos sospechosos.\n*Establece el mecanismo de notificación y colabora con el área rectora del Miniterio de Salud en caso de presentarse personas confirmadas con COVID-19, tanto a huespedes como personal colaborador.","Se cuenta con un protocolo ante casos confirmados a COVID-19:\n*Comunicación verbal y por escrito (idiomas comunes de atención) a turistas en caso de que se presente algún síntoma respiratorio o contacto con casos sospechosos.\n*Establece el mecanismo de notificación y colabora con el área rectora del Miniterio de Salud en caso de presentarse personas confirmadas con COVID-19, tanto a huespedes como personal colaborador.","Se cuenta con un protocolo ante casos confirmados a COVID-19:\n*Comunicación verbal y por escrito (idiomas comunes de atención) a turistas en caso de que se presente algún síntoma respiratorio o contacto con casos sospechosos.\n*Establece el mecanismo de notificación y colabora con el área rectora del Miniterio de Salud en caso de presentarse personas confirmadas con COVID-19, tanto a huespedes como personal colaborador.","Se cuenta con un protocolo ante casos confirmados a COVID-19:\n*Comunicación verbal y por escrito (idiomas comunes de atención) a turistas en caso de que se presente algún síntoma respiratorio o contacto con casos sospechosos.\n*Establece el mecanismo de notificación y colabora con el área rectora del Miniterio de Salud en caso de presentarse personas confirmadas con COVID-19, tanto a huespedes como personal colaborador.","Se cuenta con un protocolo ante casos confirmados a COVID-19:\n*Comunicación verbal y por escrito (idiomas comunes de atención) a turistas en caso de que se presente algún síntoma respiratorio o contacto con casos sospechosos.\n*Establece el mecanismo de notificación y colabora con el área rectora del Miniterio de Salud en caso de presentarse personas confirmadas con COVID-19, tanto a huespedes como personal colaborador.","Se cuenta con un protocolo ante casos confirmados a COVID-19:\n*Comunicación verbal y por escrito (idiomas comunes de atención) a turistas en caso de que se presente algún síntoma respiratorio o contacto con casos sospechosos.\n*Establece el mecanismo de notificación y colabora con el área rectora del Miniterio de Salud en caso de presentarse personas confirmadas con COVID-19, tanto a huespedes como personal colaborador.","Se cuenta con un protocolo ante casos confirmados a COVID-19:\n*Comunicación verbal y por escrito (idiomas comunes de atención) a turistas en caso de que se presente algún síntoma respiratorio o contacto con casos sospechosos.\n*Establece el mecanismo de notificación y colabora con el área rectora del Miniterio de Salud en caso de presentarse personas confirmadas con COVID-19, tanto a huespedes como personal colaborador.","Se cuenta con un protocolo ante casos confirmados a COVID-19:\n*Comunicación verbal y por escrito (idiomas comunes de atención) a turistas en caso de que se presente algún síntoma respiratorio o contacto con casos sospechosos.\n*Establece el mecanismo de notificación y colabora con el área rectora del Miniterio de Salud en caso de presentarse personas confirmadas con COVID-19, tanto a huespedes como personal colaborador.","Se cuenta con un protocolo ante casos confirmados a COVID-19:\n*Comunicación verbal y por escrito (idiomas comunes de atención) a turistas en caso de que se presente algún síntoma respiratorio o contacto con casos sospechosos.\n*Establece el mecanismo de notificación y colabora con el área rectora del Miniterio de Salud en caso de presentarse personas confirmadas con COVID-19, tanto a huespedes como personal colaborador.",null,null,null,"",null,null,null,null,null,null,null,null,null,null,null,null,null,null,null,null,null,null,null,null,null,null,null,null,null,null,null,null,null,null,null,null,null,null,null,null,null,null,"N",3]
[null,70,"Cuenta con una bitácora o registro del personal que consulta  por síntomas relacionados con una enfermedad respiratoria o con riesgos potenciales de contraer la enfermedad.","Cuenta con una bitácora o registro del personal que consulta  por síntomas relacionados con una enfermedad respiratoria o con riesgos potenciales de contraer la enfermedad","Cuenta con una bitácora o registro del personal que consulta  por síntomas relacionados con una enfermedad respiratoria o con riesgos potenciales de contraer la enfermedad","Cuenta con una bitácora o registro del personal que consulta  por síntomas relacionados con una enfermedad respiratoria o con riesgos potenciales de contraer la enfermedad","Cuenta con una bitácora o registro del personal que consulta  por síntomas relacionados con una enfermedad respiratoria o con riesgos potenciales de contraer la enfermedad","Cuenta con una bitácora o registro del personal que consulta  por síntomas relacionados con una enfermedad respiratoria o con riesgos potenciales de contraer la enfermedad","Cuenta con una bitácora o registro del personal que consulta  por síntomas relacionados con una enfermedad respiratoria o con riesgos potenciales de contraer la enfermedad","Cuenta con una bitácora o registro del personal que consulta  por síntomas relacionados con una enfermedad respiratoria o con riesgos potenciales de contraer la enfermedad","Cuenta con una bitácora o registro del personal que consulta  por síntomas relacionados con una enfermedad respiratoria o con riesgos potenciales de contraer la enfermedad",null,null,null,"",null,null,null,null,null,null,null,null,null,null,null,null,null,null,null,null,null,null,null,null,null,null,null,null,null,null,null,null,null,null,null,null,null,null,null,null,null,null,"N",3]
[null,71,"En caso de que una persona colaboradora sea confirmada con COVID-19 se debe:\n* Cerrar el esblecimiento para realizar el procedimiento de limpieza y desinfección.\n* Comunica al personal para que se realicen la prueba.\n* Establece mecanismo de comunicación con la clientela sobre el caso confirmado.\n* Apertura del servicio de alimentación cuando se confirme que ningún colaborador resulte positivo a un análisis de COVID-19.","En caso de que una persona colaboradora sea confirmada con COVID-19 se debe:\n* Cerrar el esblecimiento para realizar el procedimiento de limpieza y desinfección.\n* Comunica al personal para que se realicen la prueba.\n* Establece mecanismo de comunicación con la clientela sobre el caso confirmado.\n* Apertura del servicio de alimentación cuando se confirme que ningún colaborador resulte positivo a un análisis de COVID-19.","En caso de que una persona colaboradora sea confirmada con COVID-19 se debe:\n* Cerrar el esblecimiento para realizar el procedimiento de limpieza y desinfección.\n* Comunica al personal para que se realicen la prueba.\n* Establece mecanismo de comunicación con la clientela sobre el caso confirmado.\n* Apertura del servicio de alimentación cuando se confirme que ningún colaborador resulte positivo a un análisis de COVID-19.","En caso de que una persona colaboradora sea confirmada con COVID-19 se debe:\n* Cerrar el esblecimiento para realizar el procedimiento de limpieza y desinfección.\n* Comunica al personal para que se realicen la prueba.\n* Establece mecanismo de comunicación con la clientela sobre el caso confirmado.\n* Apertura del servicio de alimentación cuando se confirme que ningún colaborador resulte positivo a un análisis de COVID-19.","En caso de que una persona colaboradora sea confirmada con COVID-19 se debe:\n* Cerrar el esblecimiento para realizar el procedimiento de limpieza y desinfección.\n* Comunica al personal para que se realicen la prueba.\n* Establece mecanismo de comunicación con la clientela sobre el caso confirmado.\n* Apertura del servicio de alimentación cuando se confirme que ningún colaborador resulte positivo a un análisis de COVID-19.","En caso de que una persona colaboradora sea confirmada con COVID-19 se debe:\n* Cerrar el esblecimiento para realizar el procedimiento de limpieza y desinfección.\n* Comunica al personal para que se realicen la prueba.\n* Establece mecanismo de comunicación con la clientela sobre el caso confirmado.\n* Apertura del servicio de alimentación cuando se confirme que ningún colaborador resulte positivo a un análisis de COVID-19.","En caso de que una persona colaboradora sea confirmada con COVID-19 se debe:\n* Cerrar el esblecimiento para realizar el procedimiento de limpieza y desinfección.\n* Comunica al personal para que se realicen la prueba.\n* Establece mecanismo de comunicación con la clientela sobre el caso confirmado.\n* Apertura del servicio de alimentación cuando se confirme que ningún colaborador resulte positivo a un análisis de COVID-19.","En caso de que una persona colaboradora sea confirmada con COVID-19 se debe:\n* Cerrar el esblecimiento para realizar el procedimiento de limpieza y desinfección.\n* Comunica al personal para que se realicen la prueba.\n* Establece mecanismo de comunicación con la clientela sobre el caso confirmado.\n* Apertura del servicio de alimentación cuando se confirme que ningún colaborador resulte positivo a un análisis de COVID-19.","En caso de que una persona colaboradora sea confirmada con COVID-19 se debe:\n* Cerrar el esblecimiento para realizar el procedimiento de limpieza y desinfección.\n* Comunica al personal para que se realicen la prueba.\n* Establece mecanismo de comunicación con la clientela sobre el caso confirmado.\n* Apertura del servicio de alimentación cuando se confirme que ningún colaborador resulte positivo a un análisis de COVID-19.",null,null,null,{"$f":"IF(OR(BB102=1),\"OK\",IF(BC102=2,\"Deficiente\",\"\"))","v":""},null,null,null,null,null,null,null,null,null,null,null,null,null,null,null,null,null,null,null,null,null,null,null,null,null,null,null,null,null,null,null,null,null,null,null,null,null,null,"N",3]
[null,72,"Se cuenta con protocolo ante caso sospechoso:\n*Brinda EPP y coordina traslado.             *Brinda información sobre contacto con otras personas.","Se cuenta con protocolo ante caso sospechoso:\n*Brinda EPP y coordina traslado.\n*Brinda información sobre contacto con otras personas.","Se cuenta con protocolo ante caso sospechoso:\n*Brinda EPP y coordina traslado.\n*Brinda información sobre contacto con otras personas.","Se cuenta con protocolo ante caso sospechoso:\n*Brinda EPP y coordina traslado.\n*Brinda información sobre contacto con otras personas.","Se cuenta con protocolo ante caso sospechoso:\n*Brinda EPP y coordina traslado.\n*Brinda información sobre contacto con otras personas.","Se cuenta con protocolo ante caso sospechoso:\n*Brinda EPP y coordina traslado.\n*Brinda información sobre contacto con otras personas.","Se cuenta con protocolo ante caso sospechoso:\n*Brinda EPP y coordina traslado.\n*Brinda información sobre contacto con otras personas.","Se cuenta con protocolo ante caso sospechoso:\n*Brinda EPP y coordina traslado.\n*Brinda información sobre contacto con otras personas.","Se cuenta con protocolo ante caso sospechoso:\n*Brinda EPP y coordina traslado.\n*Brinda información sobre contacto con otras personas.",null,null,null,"",null,null,null,null,null,null,null,null,null,null,null,null,null,null,null,null,null,null,null,null,null,null,null,null,null,null,null,null,null,null,null,null,null,null,null,null,null,null,"N",3]
[null,73,"El departamento de Recursos Humanos cuenta con la información necesaria o el jefe superior de acuerdo con lo que establece el Ministerio de Salud.","El departamento de Recursos Humanos cuenta con la información necesaria o el jefe superior de acuerdo con lo que establece el Ministerio de Salud.","El departamento de Recursos Humanos cuenta con la información necesaria o el jefe superior de acuerdo con lo que establece el Ministerio de Salud.","El departamento de Recursos Humanos cuenta con la información necesaria o el jefe superior de acuerdo con lo que establece el Ministerio de Salud.","El departamento de Recursos Humanos cuenta con la información necesaria o el jefe superior de acuerdo con lo que establece el Ministerio de Salud.","El departamento de Recursos Humanos cuenta con la información necesaria o el jefe superior de acuerdo con lo que establece el Ministerio de Salud.","El departamento de Recursos Humanos cuenta con la información necesaria o el jefe superior de acuerdo con lo que establece el Ministerio de Salud.","El departamento de Recursos Humanos cuenta con la información necesaria o el jefe superior de acuerdo con lo que establece el Ministerio de Salud.","El departamento de Recursos Humanos cuenta con la información necesaria o el jefe superior de acuerdo con lo que establece el Ministerio de Salud.",null,null,null,"",null,null,null,null,null,null,null,null,null,null,null,null,null,null,null,null,null,null,null,null,null,null,null,null,null,null,null,null,null,null,null,null,null,null,null,null,null,null,"N",3]
[null,"B"," LIMPIEZA Y DESINFECCIÓN EN CASO DE DETECTAR UNA PERSONA COLABORADORA O CLIENTELA CONFIRMADA COVID-19",null,null,null,null,null,null,null,null,null,null,null,"",null,null,null,null,null,null,null,null,null,null,null,null,null,null,null,null,null,null,null,null,null,null,null,null,null,null,null,null,null,null,null,null,null,null,null,null,null,null," "]
[null,74,"Cuenta con procedimiento de limpieza y desinfección por COVID-19,  en  caso  que una persona colaboradora o cliente dé positivo a la prueba.","Cuenta con procedimiento de limpieza y desinfección por COVID-19,  en  caso  que una persona colaboradora o cliente dé positivo a la prueba.","Cuenta con procedimiento de limpieza y desinfección por COVID-19,  en  caso  que una persona colaboradora o cliente dé positivo a la prueba.","Cuenta con procedimiento de limpieza y desinfección por COVID-19,  en  caso  que una persona colaboradora o cliente dé positivo a la prueba.","Cuenta con procedimiento de limpieza y desinfección por COVID-19,  en  caso  que una persona colaboradora o cliente dé positivo a la prueba.","Cuenta con procedimiento de limpieza y desinfección por COVID-19,  en  caso  que una persona colaboradora o cliente dé positivo a la prueba.","Cuenta con procedimiento de limpieza y desinfección por COVID-19,  en  caso  que una persona colaboradora o cliente dé positivo a la prueba.","Cuenta con procedimiento de limpieza y desinfección por COVID-19,  en  caso  que una persona colaboradora o cliente dé positivo a la prueba.","Cuenta con procedimiento de limpieza y desinfección por COVID-19,  en  caso  que una persona colaboradora o cliente dé positivo a la prueba.",null,null,null,{"$f":"IF(OR(BB106=1),\"OK\",IF(BC106=2,\"Deficiente\",\"\"))","v":""},null,null,null,null,null,null,null,null,null,null,null,null,null,null,null,null,null,null,null,null,null,null,null,null,null,null,null,null,null,null,null,null,null,null,null,null,null,null,"N",3]
[null,75,"Se tiene establecido dentro del protocolo ante casos confirmados COVID-19, ventilar el área (abrir puertas, ventanas para aumentar la circulación de aire) antes de iniciar la limpieza y desinfección.","Se tiene establecido dentro del protocolo ante casos confirmados COVID-19, ventilar el área (abrir puertas, ventanas para aumentar la circulación de aire) antes de iniciar la limpieza y desinfección.","Se tiene establecido dentro del protocolo ante casos confirmados COVID-19, ventilar el área (abrir puertas, ventanas para aumentar la circulación de aire) antes de iniciar la limpieza y desinfección.","Se tiene establecido dentro del protocolo ante casos confirmados COVID-19, ventilar el área (abrir puertas, ventanas para aumentar la circulación de aire) antes de iniciar la limpieza y desinfección.","Se tiene establecido dentro del protocolo ante casos confirmados COVID-19, ventilar el área (abrir puertas, ventanas para aumentar la circulación de aire) antes de iniciar la limpieza y desinfección.","Se tiene establecido dentro del protocolo ante casos confirmados COVID-19, ventilar el área (abrir puertas, ventanas para aumentar la circulación de aire) antes de iniciar la limpieza y desinfección.","Se tiene establecido dentro del protocolo ante casos confirmados COVID-19, ventilar el área (abrir puertas, ventanas para aumentar la circulación de aire) antes de iniciar la limpieza y desinfección.","Se tiene establecido dentro del protocolo ante casos confirmados COVID-19, ventilar el área (abrir puertas, ventanas para aumentar la circulación de aire) antes de iniciar la limpieza y desinfección.","Se tiene establecido dentro del protocolo ante casos confirmados COVID-19, ventilar el área (abrir puertas, ventanas para aumentar la circulación de aire) antes de iniciar la limpieza y desinfección.",null,null,null,"",null,null,null,null,null,null,null,null,null,null,null,null,null,null,null,null,null,null,null,null,null,null,null,null,null,null,null,null,null,null,null,null,null,null,null,null,null,null,"N",3]
[null,76,"El establecimiento cuenta con personal de limpieza idóneo o contrata una empresa calificada para ejecutar el protocolo de limpieza y desinfección por COVID-19.","El establecimiento cuenta con personal de limpieza idóneo o contrata una empresa calificada para ejecutar el protocolo de limpieza y desinfección por COVID-19.","El establecimiento cuenta con personal de limpieza idóneo o contrata una empresa calificada para ejecutar el protocolo de limpieza y desinfección por COVID-19.","El establecimiento cuenta con personal de limpieza idóneo o contrata una empresa calificada para ejecutar el protocolo de limpieza y desinfección por COVID-19.","El establecimiento cuenta con personal de limpieza idóneo o contrata una empresa calificada para ejecutar el protocolo de limpieza y desinfección por COVID-19.","El establecimiento cuenta con personal de limpieza idóneo o contrata una empresa calificada para ejecutar el protocolo de limpieza y desinfección por COVID-19.","El establecimiento cuenta con personal de limpieza idóneo o contrata una empresa calificada para ejecutar el protocolo de limpieza y desinfección por COVID-19.","El establecimiento cuenta con personal de limpieza idóneo o contrata una empresa calificada para ejecutar el protocolo de limpieza y desinfección por COVID-19.","El establecimiento cuenta con personal de limpieza idóneo o contrata una empresa calificada para ejecutar el protocolo de limpieza y desinfección por COVID-19.",null,null,null,"",null,null,null,null,null,null,null,null,null,null,null,null,null,null,null,null,null,null,null,null,null,null,null,null,null,null,null,null,null,null,null,null,null,null,null,null,null,null,"N",3]
[null,77,"Se incluye en el procedimiento de limpieza y desinfección por COVID-19 cualquier superficie, utensilios,artículo y equipos que se encuentre dentro del local (incluyendo artículos que sean para desechar).","Se incluye en el procedimiento de limpieza y desinfección por COVID-19 cualquier superficie, utensilios,artículo y equipos que se encuentre dentro del local (incluyendo artículos que sean para desechar).","Se incluye en el procedimiento de limpieza y desinfección por COVID-19 cualquier superficie, utensilios,artículo y equipos que se encuentre dentro del local (incluyendo artículos que sean para desechar).","Se incluye en el procedimiento de limpieza y desinfección por COVID-19 cualquier superficie, utensilios,artículo y equipos que se encuentre dentro del local (incluyendo artículos que sean para desechar).","Se incluye en el procedimiento de limpieza y desinfección por COVID-19 cualquier superficie, utensilios,artículo y equipos que se encuentre dentro del local (incluyendo artículos que sean para desechar).","Se incluye en el procedimiento de limpieza y desinfección por COVID-19 cualquier superficie, utensilios,artículo y equipos que se encuentre dentro del local (incluyendo artículos que sean para desechar).","Se incluye en el procedimiento de limpieza y desinfección por COVID-19 cualquier superficie, utensilios,artículo y equipos que se encuentre dentro del local (incluyendo artículos que sean para desechar).","Se incluye en el procedimiento de limpieza y desinfección por COVID-19 cualquier superficie, utensilios,artículo y equipos que se encuentre dentro del local (incluyendo artículos que sean para desechar).","Se incluye en el procedimiento de limpieza y desinfección por COVID-19 cualquier superficie, utensilios,artículo y equipos que se encuentre dentro del local (incluyendo artículos que sean para desechar).",null,null,null,"",null,null,null,null,null,null,null,null,null,null,null,null,null,null,null,null,null,null,null,null,null,null,null,null,null,null,null,null,null,null,null,null,null,null,null,null,null,null,"N",3]
[null,78,"Revisa las especificaciones de los equipos y superficies del local, para definir los productos a usar y el método que se aplica de higienización.","Revisa las especificaciones de los equipos y superficies del local, para definir los productos a usar y el método que se aplica de higienización.","Revisa las especificaciones de los equipos y superficies del local, para definir los productos a usar y el método que se aplica de higienización.","Revisa las especificaciones de los equipos y superficies del local, para definir los productos a usar y el método que se aplica de higienización.","Revisa las especificaciones de los equipos y superficies del local, para definir los productos a usar y el método que se aplica de higienización.","Revisa las especificaciones de los equipos y superficies del local, para definir los productos a usar y el método que se aplica de higienización.","Revisa las especificaciones de los equipos y superficies del local, para definir los productos a usar y el método que se aplica de higienización.","Revisa las especificaciones de los equipos y superficies del local, para definir los productos a usar y el método que se aplica de higienización.","Revisa las especificaciones de los equipos y superficies del local, para definir los productos a usar y el método que se aplica de higienización.",null,null,null,"",null,null,null,null,null,null,null,null,null,null,null,null,null,null,null,null,null,null,null,null,null,null,null,null,null,null,null,null,null,null,null,null,null,null,null,null,null,null,"N",3]
[null,79,"Prohibe la utilización de métodos secos, como escobas u otros, para evitar la dispersión del polvo y partículas portadoras de gérmenes.","Prohibe la utilización de métodos secos, como escobas u otros, para evitar la dispersión del polvo y partículas portadoras de gérmenes.","Prohibe la utilización de métodos secos, como escobas u otros, para evitar la dispersión del polvo y partículas portadoras de gérmenes.","Prohibe la utilización de métodos secos, como escobas u otros, para evitar la dispersión del polvo y partículas portadoras de gérmenes.","Prohibe la utilización de métodos secos, como escobas u otros, para evitar la dispersión del polvo y partículas portadoras de gérmenes.","Prohibe la utilización de métodos secos, como escobas u otros, para evitar la dispersión del polvo y partículas portadoras de gérmenes.","Prohibe la utilización de métodos secos, como escobas u otros, para evitar la dispersión del polvo y partículas portadoras de gérmenes.","Prohibe la utilización de métodos secos, como escobas u otros, para evitar la dispersión del polvo y partículas portadoras de gérmenes.","Prohibe la utilización de métodos secos, como escobas u otros, para evitar la dispersión del polvo y partículas portadoras de gérmenes.",null,null,null,{"$f":"IF(OR(BB111=1),\"OK\",IF(BC111=2,\"Deficiente\",\"\"))","v":""},null,null,null,null,null,null,null,null,null,null,null,null,null,null,null,null,null,null,null,null,null,null,null,null,null,null,null,null,null,null,null,null,null,null,null,null,null,null,"N",3]
[null,"C","RECOLECCIÓN Y MANEJO DE RESIDUOS..",null,null,null,null,null,null,null,null,null,null,null,null,null,null,null,null,null,null,null,null,null,null,null,null,null,null,null,null,null,null,null,null,null,null,null,null,null,null,null,null,null,null,null,null,null,null,null,null,null,null," "]
[null,80,"Cuenta con un procedimiento para la recolección y manejo de residuos que incluye lo siguiente: \n *Clasificación de residuos generados durante la limpieza y desinfección por COVID-19, según los lineamientos del Ministerio de Salud (Reglamento General para la Clasificación y Manejo de Residuos Peligrosos).\n *Cierre de la bolsa con residuos cuando llega al 80% de su capacidad, para evitar el desborde.\n *Uso de bolsas rojas, de acuerdo con el Reglamento General para la Clasificación y Manejo de Residuos Peligrosos.\n",null,null,null,null,null,null,null,null,null,null,null,{"$f":"IF(OR(BB113=1),\"OK\",IF(BC113=2,\"Deficiente\",\"\"))","v":""},null,null,null,null,null,null,null,null,null,null,null,null,null,null,null,null,null,null,null,null,null,null,null,null,null,null,null,null,null,null,null,null,null,null,null,null,null,null,"N",3]
[null,"VI","LOGÍSTICA EN EL CENTRO DE TRABAJO",null,null,null,null,null,null,null,null,null,null,null,null,null,null,null,null,null,null,null,null,null,null,null,null,null,null,null,null,null,null,null,null,null,null,null,null,null,null,null,null,null,null,null,null,null,null,null,null,null,null," "]
[null,81,"Cuenta con un  Plan de Continuidad de Negocios que incluye los siguientes apartados:\na) Identificación de Amenazas.     b) Análisis de Impacto en el establecimiento.      c) Manejo de Crisis.\nd) Respuesta en la Emergencia.    e) Comunicación en la Crisis.       f) Proceso de Recuperación.","Cuenta con un  Plan de Continuidad de Negocios que incluye los siguientes apartados:\na) Identificación de Amenazas.\nb) Análisis de Impacto en el establecimiento.\nc) Manejo de Crisis.\nd) Respuesta en la Emergencia.\ne) Comunicación en la Crisis.\nf) Proceso de Recuperación.","Cuenta con un  Plan de Continuidad de Negocios que incluye los siguientes apartados:\na) Identificación de Amenazas.\nb) Análisis de Impacto en el establecimiento.\nc) Manejo de Crisis.\nd) Respuesta en la Emergencia.\ne) Comunicación en la Crisis.\nf) Proceso de Recuperación.","Cuenta con un  Plan de Continuidad de Negocios que incluye los siguientes apartados:\na) Identificación de Amenazas.\nb) Análisis de Impacto en el establecimiento.\nc) Manejo de Crisis.\nd) Respuesta en la Emergencia.\ne) Comunicación en la Crisis.\nf) Proceso de Recuperación.","Cuenta con un  Plan de Continuidad de Negocios que incluye los siguientes apartados:\na) Identificación de Amenazas.\nb) Análisis de Impacto en el establecimiento.\nc) Manejo de Crisis.\nd) Respuesta en la Emergencia.\ne) Comunicación en la Crisis.\nf) Proceso de Recuperación.","Cuenta con un  Plan de Continuidad de Negocios que incluye los siguientes apartados:\na) Identificación de Amenazas.\nb) Análisis de Impacto en el establecimiento.\nc) Manejo de Crisis.\nd) Respuesta en la Emergencia.\ne) Comunicación en la Crisis.\nf) Proceso de Recuperación.","Cuenta con un  Plan de Continuidad de Negocios que incluye los siguientes apartados:\na) Identificación de Amenazas.\nb) Análisis de Impacto en el establecimiento.\nc) Manejo de Crisis.\nd) Respuesta en la Emergencia.\ne) Comunicación en la Crisis.\nf) Proceso de Recuperación.","Cuenta con un  Plan de Continuidad de Negocios que incluye los siguientes apartados:\na) Identificación de Amenazas.\nb) Análisis de Impacto en el establecimiento.\nc) Manejo de Crisis.\nd) Respuesta en la Emergencia.\ne) Comunicación en la Crisis.\nf) Proceso de Recuperación.","Cuenta con un  Plan de Continuidad de Negocios que incluye los siguientes apartados:\na) Identificación de Amenazas.\nb) Análisis de Impacto en el establecimiento.\nc) Manejo de Crisis.\nd) Respuesta en la Emergencia.\ne) Comunicación en la Crisis.\nf) Proceso de Recuperación.",null,null,null,{"$f":"IF(OR(BB115=1),\"OK\",IF(BC115=2,\"Deficiente\",\"\"))","v":""},null,null,null,null,null,null,null,null,null,null,null,null,null,null,null,null,null,null,null,null,null,null,null,null,null,null,null,null,null,null,null,null,null,null,null,null,null,null,"N",3]
[null,82,"Las personas trabajadoras cuentan con capacitación en competencias y habilidades en temas como:\n*Protocolos lavado de manos.\n*Higiene Personal.\n*Limpieza y desinfección.\n*Lineamientos establecidos por el entidades sanitarias.","Las personas trabajadoras cuentan con capacitación en competencias y habilidades en temas como:\n*Protocolos lavado de manos.\n*Higiene Personal.\n*Limpieza y desinfección.\n*Lineamientos establecidos por el entidades sanitarias.","Las personas trabajadoras cuentan con capacitación en competencias y habilidades en temas como:\n*Protocolos lavado de manos.\n*Higiene Personal.\n*Limpieza y desinfección.\n*Lineamientos establecidos por el entidades sanitarias.","Las personas trabajadoras cuentan con capacitación en competencias y habilidades en temas como:\n*Protocolos lavado de manos.\n*Higiene Personal.\n*Limpieza y desinfección.\n*Lineamientos establecidos por el entidades sanitarias.","Las personas trabajadoras cuentan con capacitación en competencias y habilidades en temas como:\n*Protocolos lavado de manos.\n*Higiene Personal.\n*Limpieza y desinfección.\n*Lineamientos establecidos por el entidades sanitarias.","Las personas trabajadoras cuentan con capacitación en competencias y habilidades en temas como:\n*Protocolos lavado de manos.\n*Higiene Personal.\n*Limpieza y desinfección.\n*Lineamientos establecidos por el entidades sanitarias.","Las personas trabajadoras cuentan con capacitación en competencias y habilidades en temas como:\n*Protocolos lavado de manos.\n*Higiene Personal.\n*Limpieza y desinfección.\n*Lineamientos establecidos por el entidades sanitarias.","Las personas trabajadoras cuentan con capacitación en competencias y habilidades en temas como:\n*Protocolos lavado de manos.\n*Higiene Personal.\n*Limpieza y desinfección.\n*Lineamientos establecidos por el entidades sanitarias.","Las personas trabajadoras cuentan con capacitación en competencias y habilidades en temas como:\n*Protocolos lavado de manos.\n*Higiene Personal.\n*Limpieza y desinfección.\n*Lineamientos establecidos por el entidades sanitarias.",null,null,null,{"$f":"IF(OR(BB116=1),\"OK\",IF(BC116=2,\"Deficiente\",\"\"))","v":""},null,null,null,null,null,null,null,null,null,null,null,null,null,null,null,null,null,null,null,null,null,null,null,null,null,null,null,null,null,null,null,null,null,null,null,null,null,null,"N",3]
[null,83,"Promueve por medio de charlas, conversatorios, mensajes por medios electrónicos, afiches internos, entre otros, de diferentes temas de interes tanto para personas trabajadoras como la clientela.","Promueve por medio de charlas, conversatorios, mensajes por medios electrónicos, afiches internos, entre otros, de diferentes temas de interes tanto para personas trabajadoras como la clientela.","Promueve por medio de charlas, conversatorios, mensajes por medios electrónicos, afiches internos, entre otros, de diferentes temas de interes tanto para personas trabajadoras como la clientela.","Promueve por medio de charlas, conversatorios, mensajes por medios electrónicos, afiches internos, entre otros, de diferentes temas de interes tanto para personas trabajadoras como la clientela.","Promueve por medio de charlas, conversatorios, mensajes por medios electrónicos, afiches internos, entre otros, de diferentes temas de interes tanto para personas trabajadoras como la clientela.","Promueve por medio de charlas, conversatorios, mensajes por medios electrónicos, afiches internos, entre otros, de diferentes temas de interes tanto para personas trabajadoras como la clientela.","Promueve por medio de charlas, conversatorios, mensajes por medios electrónicos, afiches internos, entre otros, de diferentes temas de interes tanto para personas trabajadoras como la clientela.","Promueve por medio de charlas, conversatorios, mensajes por medios electrónicos, afiches internos, entre otros, de diferentes temas de interes tanto para personas trabajadoras como la clientela.","Promueve por medio de charlas, conversatorios, mensajes por medios electrónicos, afiches internos, entre otros, de diferentes temas de interes tanto para personas trabajadoras como la clientela.",null,null,null,"",null,null,null,null,null,null,null,null,null,null,null,null,null,null,null,null,null,null,null,null,null,null,null,null,null,null,null,null,null,null,null,null,null,null,null,null,null,null,"N",3]

{"sheet":"RESULTADOS","index":2,"n_rows":25,"n_cols":10,"rows_kept":25,"cut":false,"hidden":false,"merged":[[19,1,19,11],[11,1,12,3],[11,5,12,7],[11,9,12,11],[8,1,10,5],[8,7,10,11],[15,1,16,11],[17,1,17,11],[18,1,18,11]]}
[]
[null," "]
[]
[]
[]
[]
[]
[]
[null,null,null,null,null,null,null," "]
[]
[]
[null,{"$f":"'ERROR DE HOJA'!E16","v":{"$error":"#DIV/0!"}},null,null,null,{"$f":"'ERROR DE HOJA'!F16","v":{"$error":"#DIV/0!"}},null,null,null,{"$f":"'ERROR DE HOJA'!G17","v":83}]
[]
[]
[]
[null," "]
[]
[null,{"$f":"'ERROR DE HOJA'!E7","v":{"$error":"#DIV/0!"}}]
[null,{"$f":"'ERROR DE HOJA'!E8","v":{"$error":"#DIV/0!"}}]
[null,{"$f":"'ERROR DE HOJA'!E9","v":{"$error":"#DIV/0!"}}]
[null," "]
[null," "]
[]
[]
[null,null," "]

{"sheet":"ERROR DE HOJA","index":3,"n_rows":21,"n_cols":7,"rows_kept":21,"cut":false,"hidden":true,"merged":[]}
[]
[]
[]
[]
[]
[]
[null,null,null," ",{"$f":"IF(AND($E$16>=89.91%,$E$16<=100%),\"Puede continuar las operaciones, siempre y cuando mantenga en cumplimiento las condiciones de trabajo valoradas.  No obstante, debe enfocarse en mejorar aquellas acciones que han sido consideradas como  NO CUMPLE. \",\"Se Omite Criterio\")","v":{"$error":"#DIV/0!"}}]
[null,null,null,null,{"$f":"IF(AND($E$16>=71%,$E$16<=89.9%),\"Para autorizar la continuidad operativa, se debe corregir aquellas acciones que la empresa aún NO CUMPLE, en un periodo no mayor a 72 horas.\",\"Se Omite Criterio\")","v":{"$error":"#DIV/0!"}}]
[null,null,null,null,{"$f":"IF($E$16<=70%,\"Debe detener operaciones, hacer limpieza profunda de las instalaciones, reforzar los controles administrativos y volver a realizar una nueva evaluación.\",\"Se Omite Criterio\")","v":{"$error":"#DIV/0!"}}]
[]
[]
[]
[]
[]
[null,null,null,"total de acciones aprobadas","NUMERO DE OK","NUMERO DE DEFICIENTE","NO APLICA"]
[null,null,null,{"$f":"SUM('REVISION DE PROTOCOLO'!BB14:'REVISION DE PROTOCOLO'!BB117)","v":0},{"$f":"$D$16/(83-G17)","v":{"$error":"#DIV/0!"}},{"$f":"100%-$E$16","v":{"$error":"#DIV/0!"}}]
[null,null,null,{"$f":"SUM('REVISION DE PROTOCOLO'!BB15:'REVISION DE PROTOCOLO'!BB118)","v":0},{"$f":"$D$16","v":0},{"$f":"83-($E$17+$G$17)","v":0},{"$f":"$D$21","v":83}]
[]
[null,null,null," "]
[null,null,null,"Contar N"]
[null,null,null,{"$f":"COUNTIF('REVISION DE PROTOCOLO'!BB14:'REVISION DE PROTOCOLO'!BB117,\"N\")","v":83}]